Cogmind - Beta 17 @@@ ROGUE MODE // 2026.08.04 @ 16:57:51 Player: Momo Result: Assimilated 0b10! Performance ------------- Evolutions (9) 4500 Regions Visited (33) 6600 Robots Destroyed (592) 2960 Value Destroyed (36269) 36269 Prototype IDs (116) 2320 Alien Tech Used (12) 2400 Bonus (89424) 89424 TOTAL SCORE: 144473 Bonus ------- Triggered High Security 1000 High Alert Combat Kills 17060 Follower Combat Kills 23382 Prayed to X0-1V1 5000 Major X0-1V1 Interference 17700 Entered Garrisons 2000 Used RIF Installer 7000 Met Sigix 2000 Destroyed MAIN.C Guards 500 Met MAIN.C 5000 Destroyed MAIN.C Shell 5000 Used 0b10 Conduit 2000 Win 3000 Friendly Fire -1218 Cogmind --------- Core Integrity 481/1600 Matter 351/700 Energy 99/100 System Corruption 0% +Membrane Temperature Cool (0) +ITN Movement Core (50) Location 0b10 Command Parts ------- > --- POWER (2) -------- (None) > --- PROPULSION (3) --- (None) > --- UTILITY (17) ----- (None) > --- WEAPON (4) ------- (None) > --- INVENTORY (9) ---- Advanced Heat Sink Advanced Heat Sink Experimental Matter Compressor (500) Experimental Thermal Defense Suite Relay Coupler [Proto] (10) Subatomic Replicator Cooled Nova Cannon Experimental Remote Datajack Peak State ------------ > --- POWER ------------ Antimatter Reactor Reinforced Quantum Reactor > --- PROPULSION ------- Advanced Heavy Siege Treads Advanced Heavy Siege Treads > --- UTILITY ---------- Huge Storage Unit Experimental Energy Well Spectral Analyzer Experimental Targeting Computer Advanced Target Analyzer Experimental Core Analyzer Experimental Armor Integrity Analyzer Advanced Particle Accelerator Centrium Heavy Armor Plating Relay Coupler [C] Relay Coupler [Sentry] Relay Coupler [Hunter] Relay Coupler [Behemoth] Relay Coupler [Proto] X0-1V1's Piety Tracker > --- WEAPON ----------- Core Cannon Multirail Neutron Missile Launcher > --- INVENTORY -------- Biometal Heavy Treads Biometal Heavy Treads Cooled Q-thruster Cooled Q-thruster Cooled Q-thruster Experimental Matter Compressor Launcher Loader Advanced Phase Shifter Advanced Powered Armor Graphene Brace Thermal Barrier Experimental Thermal Defense Suite Advanced Remote Force Field Relay Coupler [Heavy] Relay Coupler [Proto] Relay Coupler [Proto] Relay Coupler [Proto] Thief Drone Bay Subatomic Replicator Spacefold Activator Improved Potential Cannon Containment Facilitator Advanced Remote Datajack Advanced Remote Datajack Experimental Remote Datajack [Rating: 252] Favorites ----------- Power Quantum Reactor Engine Improved Deuterium Engine Power Core Neutrino Core Reactor Quantum Reactor Propulsion High-density Centrium Wheel Treads Biometal Heavy Treads Leg Advanced Myomer Leg Wheel High-density Centrium Wheel Hover Unit Combat Linear Gravjet Flight Unit Cooled Field Propulsion Drive Utility X0-1V1's Piety Tracker Device X0-1V1's Piety Tracker Storage Huge Storage Unit Processor Experimental Targeting Computer Hackware Relay Coupler [Sentry] Protection Centrium Heavy Armor Plating Artifact Core Physics Calibrator Weapon Advanced Remote Datajack Energy Gun Precision Beam Rifle Energy Cannon Null Cannon Ballistic Gun Multirail Ballistic Cannon Compact Linear Accelerator Launcher Neutron Missile Launcher Special Weapon Advanced Remote Datajack Impact Weapon Power Maul Slashing Weapon Scimitar of Distortion Piercing Weapon Plasma Lance Build | -11 -10 -10 -9 -9 -8 -8 -8 -8 -7 -7 -6 -6 -5 -5 -5 -5 -4 -4 -4 -4 -4 -4 -3 -3 -3 -2 -2 -2 -2 -1 -1 -1 -1 ------- Run | Yrd Mat Min Mat Min Mat Gar Mat Gar Fac Gar Fac Gar Fac Gar Fac Gar Fac Ext Cet Arc Hub Gar Res Tes Gar Res Qua Sec Gar Acc Gar Acc Com Slots Evolved 18 | . . . 2 . 2 . . . 2 . 2 . 2 . . . 2 . . . . . 2 . . 2 . . . 2 . . . Power . | . . . . . . . . . . . . . . . . . . . . . . . . . . . . . . . . . . Propulsion 1 | . . . . . 2 . . . 1 . . . . . . . . . . . . . . . . . . . . -2 . . . Utility 14 | . . . 2 . . . . . 1 . 2 . 2 . . . 2 . . . . . 1 . . 1 . . . 3 . . . Weapon 3 | . . . . . . . . . . . . . . . . . . . . . . . 1 . . 1 . . . 1 . . . Parts Attached 417 | 5 4 3 21 6 14 10 15 13 27 26 41 15 23 12 10 8 24 11 4 . 4 7 4 15 17 1 9 19 15 . 8 2 24 Power 52 | 1 . 2 2 . 3 . 1 3 4 3 3 3 4 2 . . 2 2 1 . . . . . 4 . 2 1 2 . 3 1 3 Engine 17 | 1 . 2 2 . 3 . 1 1 3 1 1 1 1 . . . . . . . . . . . . . . . . . . . . Core 12 | . . . . . . . . 2 . 1 1 2 1 . . . 1 1 . . . . . . 1 . 1 . . . 1 . . Reactor 23 | . . . . . . . . . 1 1 1 . 2 2 . . 1 1 1 . . . . . 3 . 1 1 2 . 2 1 3 Propulsion 51 | 2 . . 4 . 3 . 5 1 5 4 9 . 1 . . 1 5 1 . . . 2 . 1 2 . 1 1 1 . . . 2 Treads 16 | . . . . . . . 1 . . 2 1 . . . . 1 3 1 . . . 1 . . 1 . 1 1 1 . . . 2 Leg 5 | . . . . . . . . . . . 3 . . . . . . . . . . . . 1 1 . . . . . . . . Wheel 27 | 2 . . 4 . 3 . 3 1 5 2 5 . 1 . . . 1 . . . . . . . . . . . . . . . . Hover 1 | . . . . . . . 1 . . . . . . . . . . . . . . . . . . . . . . . . . . Flight 2 | . . . . . . . . . . . . . . . . . 1 . . . . 1 . . . . . . . . . . . Utility 216 | . 3 . 7 5 5 6 4 6 12 12 21 10 15 10 9 4 13 5 1 . 4 3 3 11 4 1 5 9 11 . 3 1 13 Device 69 | . 1 . 3 4 2 1 1 . 3 1 7 2 4 2 2 . 4 2 . . 3 1 2 6 2 1 1 5 4 . 1 . 4 Storage 10 | . 1 . 1 . . . . 1 . . 1 . . 1 . . 1 . . . . . . 2 . . 1 . 1 . . . . Processor 16 | . 1 . . . . . . . 1 . 1 . 1 . . . 2 . . . . . 1 1 . . . 2 . . 1 . 5 Hackware 86 | . . . . . . 2 3 3 5 6 10 8 10 5 7 4 5 2 1 . 1 1 . 1 2 . 2 1 3 . 1 . 3 Protection 32 | . . . 3 1 3 3 . 2 3 5 2 . . 2 . . 1 1 . . . 1 . 1 . . . . 2 . . 1 1 Artifact 3 | . . . . . . . . . . . . . . . . . . . . . . . . . . . 1 1 1 . . . . Weapon 98 | 2 1 1 8 1 3 4 5 3 6 7 8 2 3 . 1 3 4 3 2 . . 2 1 3 7 . 1 8 1 . 2 . 6 Energy Gun 21 | 2 . 1 2 . 1 . 2 . 1 3 2 1 . . . 1 2 . 1 . . . . 1 1 . . . . . . . . Energy Cannon 10 | . . . . . . . . . 1 . 2 . 1 . . . . . . . . . . . 1 . 1 2 . . . . 2 Ballistic Gun 16 | . . . 6 1 . . . 1 . 1 . . . . . 1 . 1 1 . . 1 . . . . . 1 . . . . 2 Ballistic Cannon 13 | . . . . . . 3 . 1 . 2 . . . . . . 1 2 . . . 1 . . 1 . . 2 . . . . . Launcher 12 | . 1 . . . 1 1 2 . 1 1 1 . . . . 1 . . . . . . . 1 . . . 1 . . . . 1 Special Weapon 20 | . . . . . 1 . 1 . 3 . 1 1 1 . 1 . 1 . . . . . . 1 3 . . 2 1 . 2 . 1 Impact Weapon 3 | . . . . . . . . 1 . . 1 . . . . . . . . . . . . . 1 . . . . . . . . Slashing Weapon 1 | . . . . . . . . . . . 1 . . . . . . . . . . . . . . . . . . . . . . Piercing Weapon 2 | . . . . . . . . . . . . . 1 . . . . . . . . . 1 . . . . . . . . . . Special Melee Weapon . | . . . . . . . . . . . . . . . . . . . . . . . . . . . . . . . . . . Unidentified Prototypes 80 | . 1 . 3 . 3 . 5 . 2 . 13 1 1 1 . . 8 1 2 . 1 4 2 8 . . 4 16 1 . . . 3 Corrupted Parts 1 | . . . . 1 . . . . . . . . . . . . . . . . . . . . . . . . . . . . . System Corruption 4 | . . . . 4 . . . . . . . . . . . . . . . . . . . . . . . . . . . . . Parts Lost 120 | . . 4 4 4 3 5 10 3 9 11 14 . 2 3 1 2 8 1 . . . 1 . . 2 . . 3 2 . 1 1 26 Power 26 | . . 2 1 . . 1 2 2 4 2 4 . . . . . 2 1 . . . . . . 1 . . . . . 1 1 2 Propulsion 23 | . . . 1 1 . 1 4 1 1 3 4 . 1 . . 1 2 . . . . . . . . . . . 1 . . . 2 Utility 43 | . . . 1 2 3 3 2 . 1 1 6 . . 1 1 . 3 . . . . 1 . . 1 . . 3 1 . . . 13 Weapon 28 | . . 2 1 1 . . 2 . 3 5 . . 1 2 . 1 1 . . . . . . . . . . . . . . . 9 Highest Loss Streak 16 | . . 2 2 3 2 2 4 1 3 5 10 . 1 3 1 2 5 1 . . . 1 . . 1 . . 1 1 . 1 1 16 To Critical Strikes 1 | . . . . . . . . . . . . . . . . . 1 . . . . . . . . . . . . . . . . Average Backups 22 | . 4 9 16 23 24 24 24 24 24 22 24 24 25 25 25 25 23 22 23 24 23 23 23 23 23 22 21 21 24 23 22 24 21 Power . | . . . . 1 1 1 . . . . . . . . . . . . . . . . . . . . . . . . . . . Propulsion 1 | . . 1 1 2 . . . . . . 1 2 1 . . . 1 2 2 3 3 2 3 1 . . . . . . 1 1 1 Utility 15 | . 1 5 6 9 10 13 17 17 16 16 16 16 19 20 21 20 17 13 12 13 13 14 14 16 16 17 15 13 16 17 15 16 14 Weapon 4 | . 2 3 7 10 10 8 4 4 5 4 4 4 3 3 2 1 2 5 6 6 5 4 4 4 5 4 4 4 4 3 2 3 1 Tool/Special . | . . . . . . . . . . . . . . . . . . . . . . . . . . . . . . . . . . Unused Backups 123 | . 1 . 6 . 5 8 6 3 4 4 4 3 3 10 3 8 7 . 3 . . 1 . 8 7 . 3 3 5 . 3 . 15 Power 5 | . . . . . . . . . 1 . . 1 . . . . 1 . . . . . . 1 . . 1 . . . . . . Propulsion 26 | . 1 . . . . . 2 . . . . . 3 3 . 3 1 . . . . . . 2 . . . 2 . . 2 . 7 Utility 52 | . . . 3 . . 2 2 1 1 4 3 2 . 4 1 5 4 . . . . 1 . 4 5 . 2 . 2 . 1 . 5 Weapon 36 | . . . 3 . 4 6 2 1 2 . 1 . . 3 2 . 1 . 3 . . . . 1 2 . . . 3 . . . 2 Tool/Special 4 | . . . . . 1 . . 1 . . . . . . . . . . . . . . . . . . . 1 . . . . 1 Average Slot Usage (%) 86 | . 83 91 95 97 95 94 96 78 81 76 87 89 93 99 98 95 95 85 85 85 84 84 85 84 85 83 86 81 76 79 85 81 79 Engine 2 | . 14 13 9 10 8 9 15 7 6 7 1 . 6 . . . . . . . . . . . . . . . . . . . . Core 1 | . . . . . . . . 4 3 . 2 3 2 . . . . 7 6 5 5 5 4 4 4 . . . . . . . . Reactor 5 | . . . . . . . . . 2 3 5 5 1 11 11 11 8 2 3 5 5 5 4 4 3 8 8 8 7 7 5 5 6 Treads 4 | . . . . . . . . . 2 1 4 . . . . 2 1 9 9 10 10 9 9 9 9 12 12 12 12 7 7 7 5 Wheel 8 | . 28 28 19 20 31 24 21 8 12 7 12 17 18 22 22 16 15 . . . . . . 2 3 . . . . . . . . Device 12 | . . 14 18 17 11 9 16 8 9 7 7 8 10 10 7 8 13 13 23 20 20 22 21 19 9 10 11 8 12 18 21 21 12 Storage 5 | . 5 14 9 10 8 8 8 8 7 6 5 5 5 5 5 5 5 5 5 5 5 5 4 4 4 4 4 4 4 3 3 3 3 Processor 2 | . 6 . . . . . . . 1 . . . 1 . . . 1 . . . . . . . . . . . . . 2 3 16 Hackware 24 | . . . . . . 9 1 21 19 19 28 35 37 37 39 38 37 36 27 30 29 27 27 27 31 33 37 35 24 23 23 23 18 Protection 3 | . . . 14 20 19 10 13 2 2 6 5 . . . . 1 1 1 4 5 5 5 4 2 2 1 . . 3 . 2 3 3 Energy Gun 2 | . 25 14 3 . 1 8 12 3 2 2 1 2 . . . 1 1 2 2 1 . 1 4 1 . . . 2 . . . . . Energy Cannon 1 | . . . . . . . . . 2 1 . 1 . 2 . . . . . . . . . . . 4 3 2 5 3 3 7 3 Ballistic Gun 1 | . . . 17 19 10 . . 2 . . . . . . . . 2 . 1 . . 2 . . . . . . 1 3 2 . 2 Ballistic Cannon 1 | . . . . . . 8 2 . . 4 2 . . 2 5 2 . 2 1 3 4 . . 2 3 4 4 1 . . . . . Special Weapon 2 | . . . . . . . . 5 4 2 1 4 3 5 5 4 4 4 . . . . 3 3 3 3 3 2 2 3 2 1 1 Peak Build Rating 252 | 5 19 21 41 43 50 52 59 57 68 77 123 120 125 124 124 125 142 149 162 158 165 164 171 184 187 202 211 227 239 247 241 245 252 Average Rating 144 | 3 6 19 32 37 46 49 53 53 60 66 95 100 103 120 119 120 125 140 155 157 161 160 166 175 180 196 202 206 230 230 236 238 234 On Entrance 122 | . 5 19 21 35 43 46 52 37 57 64 74 120 91 122 121 118 121 131 143 158 157 163 156 167 184 187 198 201 227 214 231 241 245 Avg Prop Armor Cover (%) 8 | 13 . . . . . . 4 12 12 7 9 . . . . 18 17 19 . . . . . 1 2 . . . . . . . . Naked Turns 14 | . . . . . . . . . . . . . . . . . . . . . . . . . . . . . . . . . 14 Heaviest Build 229 | 7 29 29 110 109 134 130 138 123 126 151 153 147 125 137 135 151 153 139 159 153 163 164 162 161 162 185 175 178 210 191 211 229 229 Greatest Support 240 | 26 26 26 26 24 52 52 36 38 66 66 77 68 76 76 76 76 85 170 170 170 170 170 160 165 240 240 240 235 235 150 150 150 160 Greatest Overweight (x) 40 | 1 1 1 9 4 4 5 10 9 4 5 40 2 2 1 1 3 5 5 1 . . 1 1 1 . . . . . 1 1 1 2 Average Overweight (x) 1 | . . . 2 4 2 2 3 3 1 3 2 1 1 1 1 1 1 . . . . . . . . . . . . 1 1 1 1 Largest Inventory Capacity 29 | 5 15 15 25 27 27 27 27 27 27 27 27 27 27 27 27 27 27 27 27 27 27 27 27 27 27 27 27 29 29 29 29 29 29 Average Capacity 26 | 5 9 15 18 26 27 27 27 27 27 27 27 27 27 27 27 27 27 27 27 27 27 27 27 27 27 27 27 27 29 29 29 29 28 Most Carried 29 | . 6 14 25 27 27 27 27 27 27 27 27 27 27 27 27 27 27 27 27 27 27 27 27 27 27 27 27 29 29 29 29 29 29 Average Carried 25 | . 4 10 17 25 26 26 26 26 26 25 25 26 26 26 26 26 25 25 26 27 26 26 25 26 26 26 26 26 28 28 28 28 25 Final Capacity 29 | 5 15 15 25 27 27 27 27 27 27 27 27 27 27 27 27 27 27 27 27 27 27 27 27 27 27 27 27 29 29 29 29 29 9 Final Carried 29 | . 6 13 25 27 27 27 26 27 27 27 25 27 27 27 27 27 25 27 27 27 27 27 27 26 27 27 27 29 29 29 29 29 8 Class Distribution -------------------- 45% | Botlord-Mutant 24% | Botlord-Tank 10% | Botlord-Gunner 5% | Mutant 4% | Bothacker-Mutant 4% | Hauler-Mutant Dominant Class ---------------- Mutant | -10/Materials Mutant | -10/Mines Mutant | -9/Materials Hauler-Mutant | -9/Mines Hauler-Mutant | -8/Materials Hauler-Tank | -8/Garrison Bothacker-Mutant | -8/Materials Bothacker-Mutant | -8/Garrison Botlord-Mutant | -7/Factory Botlord-Mutant | -7/Garrison Botlord-Mutant | -6/Factory Botlord-Mutant | -6/Garrison Botlord-Mutant | -5/Factory Botlord-Mutant | -5/Garrison Botlord-Mutant | -5/Factory Botlord-Mutant | -5/Garrison Botlord-Mutant | -4/Factory Botlord-Mutant | -4/Extension Botlord-Mutant | -4/Cetus Botlord-Mutant | -4/Archives Botlord-Mutant | -4/Hub_04(d) Botlord-Mutant | -4/Garrison Botlord-Mutant | -3/Research Botlord-Mutant | -3/Testing Botlord-Mutant | -3/Garrison Botlord-Tank | -2/Research Botlord-Tank | -2/Quarantine Botlord-Tank | -2/Section 7 Botlord-Tank | -2/Garrison Botlord-Tank | -1/Access Botlord-Tank | -1/Garrison Botlord-Tank | -1/Access Botlord-Gunner | -1/Command Resources | -11 -10 -10 -9 -9 -8 -8 -8 -8 -7 -7 -6 -6 -5 -5 -5 -5 -4 -4 -4 -4 -4 -4 -3 -3 -3 -2 -2 -2 -2 -1 -1 -1 -1 ----------- Run | Yrd Mat Min Mat Min Mat Gar Mat Gar Fac Gar Fac Gar Fac Gar Fac Gar Fac Ext Cet Arc Hub Gar Res Tes Gar Res Qua Sec Gar Acc Gar Acc Com Matter Collected 30475 | 227 73 312 1100 325 866 393 564 773 1154 701 2589 965 1297 621 989 1106 1502 827 144 10 77 916 209 1662 1946 309 608 1934 562 132 575 876 4131 Remotely . | . . . . . . . . . . . . . . . . . . . . . . . . . . . . . . . . . . Salvage Created 23550 | . 612 199 1308 228 767 577 916 142 2149 753 1671 92 301 385 151 85 87 65 45 . . 365 . 216 381 356 455 288 481 46 325 274 9830 Parts 971 | . 48 21 89 16 18 36 42 2 105 38 93 4 13 12 14 4 12 6 3 . . 21 . 7 21 20 26 8 27 3 22 13 227 Haulers Intercepted 11 | . 1 . 5 . 1 . 1 . 1 . . . . . . . . . . . . . . . . . . 2 . . . . . Recyclers Shooed 10 | . 1 . . . . . 2 . 3 . 2 . . . 2 . . . . . . . . . . . . . . . . . . Parts Field Recycled . | . . . . . . . . . . . . . . . . . . . . . . . . . . . . . . . . . . Retrieved Matter . | . . . . . . . . . . . . . . . . . . . . . . . . . . . . . . . . . . Parts Self-Destructed . | . . . . . . . . . . . . . . . . . . . . . . . . . . . . . . . . . . Prevented . | . . . . . . . . . . . . . . . . . . . . . . . . . . . . . . . . . . Parts Restored . | . . . . . . . . . . . . . . . . . . . . . . . . . . . . . . . . . . Kills | -11 -10 -10 -9 -9 -8 -8 -8 -8 -7 -7 -6 -6 -5 -5 -5 -5 -4 -4 -4 -4 -4 -4 -3 -3 -3 -2 -2 -2 -2 -1 -1 -1 -1 ------- Run | Yrd Mat Min Mat Min Mat Gar Mat Gar Fac Gar Fac Gar Fac Gar Fac Gar Fac Ext Cet Arc Hub Gar Res Tes Gar Res Qua Sec Gar Acc Gar Acc Com Combat Hostiles Destroyed 483 | . 16 13 26 18 17 21 16 2 37 21 26 2 4 8 3 1 2 1 . . . 13 . 5 12 4 6 6 15 2 9 3 174 Melee 4 | . . . . . . . . . . . . 1 3 . . . . . . . . . . . . . . . . . . . . Guns 153 | . 11 3 22 6 12 6 14 1 8 4 3 . . . . . 1 . . . . 5 . . . . . . . . 2 . 55 Cannons 142 | . . . . . . 8 2 . 5 2 12 . 1 8 3 1 1 1 . . . . . 5 6 3 5 6 9 . 7 2 55 AOE 172 | . 5 10 3 12 3 7 . . 24 13 7 . . . . . . . . . . 8 . . 6 . 1 . 6 2 . 1 64 Classes Destroyed 29 | . 8 1 2 2 . 3 1 . 1 1 2 . . . . . . . . . . . . 1 . . . 1 . . 1 . 5 Worker 35 | . . 1 . 1 2 . 2 . 3 . 12 . . . 1 . 1 . . . . . . . . 2 . . . . . 1 9 Builder 20 | . 1 . . . 1 . 1 . 5 . 3 . . . 1 . 1 1 . . . . . . . 1 3 2 . . . . . Tunneler 9 | . 1 1 2 3 1 . . . . . . . . . . . . . . . . . . . . . . . . . . 1 . Hauler 11 | . 1 . 5 . 1 . 1 . 1 . . . . . . . . . . . . . . . . . . 2 . . . . . Recycler 14 | . 1 . 1 . 1 . . . 7 . 1 . . . . . . . . . . . . . . 1 1 . . . . . 1 Carrier 4 | . . . . . . . . . . . . . . . . . . . . . . . . . . . . . . . . . 4 Mechanic 5 | . . . . . . . . . . . 1 . . . . . . . . . . . . . . . . . . . . . 4 Operator 5 | . 1 . 3 . 1 . . . . . . . . . . . . . . . . . . . . . . . . . . . . Drone 4 | . . . . . . . . . . . . . . . . . . . . . . . . 1 . . . . . . . . 3 Watcher 16 | . 2 . 3 . . . 1 . 2 . . . . . 1 . . . . . . . . 1 . . . . 1 . . . 5 Swarmer 102 | . 9 9 4 . 7 8 . . 12 8 4 1 1 1 1 1 1 . . . . 8 . . 8 1 . . 7 2 4 . 5 Cutter 3 | . . . . . . . . . . . . . . . . . . . . . . . . . . . . . . . 2 . 1 Saboteur 3 | . . . . . . . . . . . . . . . . . . . . . . . . . . . . . . . . . 3 Grunt 170 | . 7 4 16 3 6 1 4 2 18 9 6 1 3 2 . . 1 . . . . 2 . 1 1 . 1 . 1 . . . 81 Brawler 11 | . . . . . . . 1 . . 1 1 . . . . . . . . . . 1 . . . . . . . . . . 7 Duelist 14 | . . . 1 . . . . . . 1 1 . . . . 1 . . . . . . . . . . . . . . . . 10 Protector 13 | . . . . . . . . . . . 1 . . . . . . . 1 . . . . . . . . . . . . . 11 Sentry 35 | . . . 6 . 4 6 10 . 1 2 1 . . . . . . 1 . . . . . . . . . . 1 . . 2 1 Demolisher 2 | . . . . 1 . . . . 1 . . . . . . . . . . . . . . . . . . . . . . . . Specialist 10 | . . . . . . 1 . . . . 5 . . 2 . . . . . . . . . . 1 . . . . . . . 1 Hunter 16 | . . . . . . 1 1 . . . 2 . . . 1 . . . . . . . . . 1 . . . . . . . 10 Programmer 86 | . . . . . . 3 . 1 5 . 7 . . 3 1 . . . . . . 2 . 3 2 4 4 3 6 . 4 1 37 Heavy 6 | . . . . . . . . . 1 . 1 . 1 . . . . . . . . . . . . . 1 . . . . 1 1 Behemoth 1 | . . . . . . . . . . 1 . . . . . . . . . . . . . . . . . . . . . . . S7 Guard 1 | . . . . . . . . . . . . . . . . . . . . . . . . . . . . 1 . . . . . Lightning 1 | . . . . . . . . . . . . . . . . . . . . . . . . . . . 1 . . . . . . Combat Programmer 2 | . . . . . . . . . . . . . . . . . . . . . . . . . . . . . . . . . 2 Investigator 1 | . . . . . . . . . . . . . . . . . . . . . . . . . . . . . . . . . 1 Striker 7 | . . . . . . . . . . . . . . . . . . . . . . . . . . . . . . . . . 7 Executioner 6 | . . . . . . . . . . . . . . . . . . . . . . . . . . . . . . . . . 6 Alpha 7 2 | . . . . . . . . . . . . . . . . . . . . . . . . . . . . 2 . . . . . Assembled 14 | . . . . 14 . . . . . . . . . . . . . . . . . . . . . . . . . . . . . Thug 2 | . . . 1 . . 1 . . . . . . . . . . . . . . . . . . . . . . . . . . . Best Kill Streak 45 | . 13 4 5 14 9 5 4 1 20 13 9 1 1 3 2 1 1 1 . . . 5 . 2 2 6 2 4 5 2 4 3 45 Combat Bots Only 45 | . 7 4 4 14 5 5 4 1 12 13 4 1 1 3 1 1 1 1 . . . 5 . 2 2 3 2 2 5 2 4 2 45 Max Kills in Single Turn 14 | . 3 2 2 4 5 2 1 1 6 4 3 1 1 1 2 1 1 1 1 . . 5 . 1 2 3 2 2 2 2 1 2 14 Gunslinging 1 | . 1 . 1 1 1 . . . . . . . . . . . . . . . . . . . . . . . . . . . . Exploded 13 | . 3 2 1 4 3 2 . . 5 3 2 . . . . . . . . . . 5 . . 2 . 1 . 2 2 . 1 13 Melee 1 | . . . . . . . . . . . . 1 1 . . . . . . . . . . . . . . . . . . . . Uniques/NPCs Destroyed 1 | . . . . . . . . . . . . . . . . . . . . . . . . . . . . . . . . . 1 MAIN.C Shell (-1/Command) Combat | -11 -10 -10 -9 -9 -8 -8 -8 -8 -7 -7 -6 -6 -5 -5 -5 -5 -4 -4 -4 -4 -4 -4 -3 -3 -3 -2 -2 -2 -2 -1 -1 -1 -1 -------- Run | Yrd Mat Min Mat Min Mat Gar Mat Gar Fac Gar Fac Gar Fac Gar Fac Gar Fac Ext Cet Arc Hub Gar Res Tes Gar Res Qua Sec Gar Acc Gar Acc Com Hostile Shots Fired 2733 | . 20 22 71 31 126 64 97 63 145 160 321 40 24 52 24 28 118 58 37 24 21 39 12 31 97 23 29 103 80 9 53 11 700 Missed 779 | . 7 6 26 7 35 18 19 19 41 51 111 14 7 13 3 8 43 15 9 11 7 11 3 10 29 11 10 22 19 . 16 1 177 Hits 1954 | . 13 16 45 24 91 46 78 44 104 109 210 26 17 39 21 20 75 43 28 13 14 28 9 21 68 12 19 81 61 9 37 10 523 Melee 63 | . . . 1 2 . . . . . 2 2 . . . . 1 . . 19 . . 1 . 6 2 . . . . . 4 . 23 Projectile 1891 | . 13 16 44 22 91 46 78 44 104 107 208 26 17 39 21 19 75 43 9 13 14 27 9 15 66 12 19 81 61 9 33 10 500 AOE 31 | . . . . 8 . . 7 . . . 2 . 1 1 . 1 1 . . . . . . . 1 . . 3 . . . . 6 Critical Strikes 99 | . 1 . . . 5 3 4 6 3 4 2 1 2 3 . 2 6 2 2 . 1 . . 2 3 . 2 6 5 . 4 1 29 Actively Blocked 20 | . . . . . . . . . . . . . . . . . 4 2 2 . 1 . . 2 . . . . . . 1 1 7 Part Disruptions 10 | . . . . . . . . . 1 . 9 . . . . . . . . . . . . . . . . . . . . . . Damage Taken 37718 | . 167 179 701 544 1041 847 1465 678 1783 1736 3019 320 453 958 542 582 1618 772 231 303 273 437 143 294 1146 620 577 1616 1362 133 512 251 12415 Core 4199 | . 69 24 99 30 109 156 86 194 217 230 372 18 54 103 148 50 157 34 8 19 . 46 23 12 93 88 38 224 104 . 41 . 1353 Absorbed by Shields 7470 | . . . . 64 . . . 9 . 7 73 102 40 133 60 133 34 147 168 . 85 125 43 173 520 138 280 604 276 125 403 145 3583 Reduced by Siege Mode 1277 | . . . . . . . . . . . . . . . . . 53 37 . 19 16 . . . 23 . . 162 31 . . . 936 Redirected to Core 122 | . . . . . . . . . . . . . . . . . . . . . . . . . . . . 48 74 . . . . Ignored by Resistances 1686 | . . . . 9 119 68 30 28 36 7 318 . 12 47 . 39 87 45 67 51 83 99 25 27 30 . . . 83 . 103 31 242 Regen/Repaired (Parts) 2803 | . . . . . . . . . . . . . 374 266 301 170 . . . . . . . . . . . 3 . . . . 1689 Core Remaining (%) 72 | 100 . 79 . 97 . . . 55 . 36 . 70 . . . 80 . . . . . 77 . . 90 . . . 81 . . . 30 Volleys Fired 2435 | . 29 18 81 21 63 52 61 55 148 59 185 75 68 69 92 101 99 94 17 10 23 43 16 59 135 55 65 111 100 15 93 34 289 Largest 4 | . 2 2 4 2 2 3 2 1 2 2 1 1 1 1 1 1 1 2 1 1 1 1 1 1 1 2 2 2 2 1 2 2 3 Hottest 358 | . 80 80 120 50 61 138 136 75 170 113 90 60 47 105 47 78 88 96 78 78 51 78 240 240 130 188 358 300 330 130 200 330 350 Shots Fired 2918 | . 54 20 185 39 91 86 112 55 147 84 186 76 68 70 92 101 97 101 17 10 23 43 16 60 138 57 67 117 110 15 111 36 434 Gun 1071 | . 52 12 178 35 81 40 90 35 43 33 34 13 . . . 17 19 7 8 2 . 24 4 5 2 . . 20 7 . 18 . 292 Cannon 915 | . . . . . . 36 15 . 53 37 103 3 1 37 33 24 5 36 9 8 17 5 . 41 71 25 38 55 74 8 57 23 101 Launcher 133 | . 2 8 7 4 10 10 2 . 17 10 15 . 1 . . 2 . . . . . 8 . . 5 . 1 . 3 1 7 . 20 Special 799 | . . . . . . . 5 20 34 4 34 60 66 33 59 58 73 58 . . 6 6 12 14 60 32 28 42 26 6 29 13 21 Kinetic 1112 | . . . 157 35 64 36 15 13 1 32 96 2 1 12 33 26 16 36 9 8 17 26 . 41 68 9 12 30 7 . 18 . 292 Thermal 729 | . . 8 5 . 17 40 90 22 95 16 25 1 . 25 . 15 8 7 8 2 . 3 4 5 3 16 26 25 74 8 57 23 101 Explosive 90 | . 2 8 7 4 . 10 2 . 6 5 . . . . . 2 . . . . . 8 . . 5 . 1 . 3 1 7 . 19 Electromagnetic 187 | . 52 4 16 . 10 . . . 11 27 31 13 1 . . . . . . . . . . . 2 . . 20 . . . . . Robot Hit Streak 67 | . 9 5 8 4 18 19 12 15 15 16 15 20 25 27 18 26 28 20 2 8 15 9 10 11 11 8 15 13 12 4 11 10 67 Robot Miss Streak 12 | . 3 2 12 4 5 5 6 7 3 7 3 4 6 2 3 3 2 2 4 1 2 1 1 3 4 7 2 2 2 2 5 1 6 Penetration Max 7 | . . . . . . . . . . . 1 . . . 1 1 . 2 . . . 1 . . . . 1 2 . . . . 7 Secondary Targets 17 | . 1 . 4 2 1 . 1 . . . . . . . . . . . . . . . . . . . . . . . . . 8 Max Gunslinging Chain 1 | . 1 . 1 1 1 . 1 . . . . . . . . . . . . . . . . . . . . . . . . . 1 Shots Hit Robots 1925 | . 37 10 108 27 68 53 82 28 96 57 125 60 57 50 63 68 81 84 6 9 17 26 12 27 78 27 34 73 39 5 42 18 358 Core Hits 1331 | . 24 19 67 49 33 43 46 5 82 50 82 6 6 10 9 6 6 9 2 3 4 18 1 9 16 9 8 28 16 2 13 5 645 Critical Kills 54 | . . . 1 . . . . . . . . . . . . . . 1 . . . 2 . . . 1 1 . 1 . . . 47 Critical Parts Destroyed 75 | . . . 1 . . . . . . 2 . . . . . . . 5 . . . 2 . . . . 1 1 . . . . 63 Critical Strikes 191 | . . . 3 . 4 3 6 2 . 2 9 . . 2 5 3 2 15 . . 3 4 . 3 5 1 2 2 1 . . . 114 Burn 15 | . . . . . 4 2 6 2 . . . . . . . . 1 . . . . . . . . . . . . . . . . Meltdown 3 | . . . . . . . . . . . . . . . . . . . . . . . . . . 1 . . 1 . . . 1 Destroy 138 | . . . 2 . . . . . . . . . . . . . . 15 . . . 4 . . . . 2 2 . . . . 113 Blast 31 | . . . . . . 1 . . . . 8 . . 2 5 3 1 . . . 3 . . 3 5 . . . . . . . . Corrupt 2 | . . . 1 . . . . . . . 1 . . . . . . . . . . . . . . . . . . . . . . Smash 2 | . . . . . . . . . . 2 . . . . . . . . . . . . . . . . . . . . . . . Melee Attacks 58 | . . . . . . . . 10 14 4 6 5 16 . . 3 . . . . . . . . . . . . . . . . . Impact 35 | . . . . . . . . 10 14 4 5 2 . . . . . . . . . . . . . . . . . . . . . Slashing 12 | . . . . . . . . . . . 1 3 5 . . 3 . . . . . . . . . . . . . . . . . Piercing 11 | . . . . . . . . . . . . . 11 . . . . . . . . . . . . . . . . . . . . Sneak Attacks 2 | . . . . . . . . . . . . 1 1 . . . . . . . . . . . . . . . . . . . . Combat Hostiles . | . . . . . . . . . . . . . . . . . . . . . . . . . . . . . . . . . . Follow-up Attacks . | . . . . . . . . . . . . . . . . . . . . . . . . . . . . . . . . . . Damage Inflicted 106612 | . 1044 660 2309 1249 1753 1599 1551 381 5281 2434 5962 385 316 1169 424 1075 947 923 225 326 469 1586 74 981 2431 1283 1945 3848 4468 388 2066 1556 55504 Guns 21445 | . 590 95 1894 413 1249 458 1266 381 975 398 642 234 . . . 480 303 189 122 75 . 498 74 89 2 . . 42 50 . 436 . 10490 Cannons 46287 | . . . . . . 587 262 . 1205 647 2958 32 38 1169 424 436 644 734 103 251 469 36 . 892 1332 765 1795 2717 2474 133 1566 1151 23467 Explosions 38295 | . 454 565 415 836 504 554 23 . 3101 1245 2362 . 72 . . 43 . . . . . 1052 . . 1097 518 150 1089 1944 255 64 405 21547 Melee 585 | . . . . . . . . . . 144 . 119 206 . . 116 . . . . . . . . . . . . . . . . . Ramming . | . . . . . . . . . . . . . . . . . . . . . . . . . . . . . . . . . . Kinetic 24310 | . . . 1698 413 961 587 262 98 . 475 2573 . 38 316 424 436 312 734 103 251 469 482 . 892 1059 49 271 393 50 . 436 . 10528 Thermal 49562 | . 294 70 45 . 288 458 1266 283 2507 375 1490 32 . 853 . 480 137 189 122 75 . 52 74 89 273 716 1524 3413 3788 133 1630 1539 27367 Explosive 26138 | . 160 565 415 836 . 554 23 . 1456 775 . . . . . 43 . . . . . 1052 . . 1097 518 150 . 630 255 . . 17609 Electromagnetic 5519 | . 590 25 151 . 504 . . . 1318 665 1899 234 72 . . . . . . . . . . . 2 . . 42 . . . 17 . Impact 181 | . . . . . . . . . . 144 . 37 . . . . . . . . . . . . . . . . . . . . . Slashing 317 | . . . . . . . . . . . . 82 119 . . 116 . . . . . . . . . . . . . . . . . Piercing 87 | . . . . . . . . . . . . . 87 . . . . . . . . . . . . . . . . . . . . Entropic 498 | . . . . . . . . . . . . . . . . . 498 . . . . . . . . . . . . . . . . Highest Corruption 29 | . . . 8 5 . 12 12 5 12 1 21 21 6 6 6 . 7 7 . . . . 1 1 3 22 29 29 17 . . . . Average Corruption 8 | . . . 8 2 . 8 9 2 5 1 5 21 4 5 6 . 3 7 . . . . 1 1 2 7 25 29 17 . . . . Corruption Purged 14 | . . . . . . . 7 . . . 7 . . . . . . . . . . . . . . . . . . . . . . Corruption Blocked . | . . . . . . . . . . . . . . . . . . . . . . . . . . . . . . . . . . Effects 489 | . . . 2 15 . 11 30 5 35 13 19 31 32 34 10 . 21 10 . . . . 2 4 19 21 86 64 25 . . . . Message Errors 98 | . . . . 3 . 2 2 1 7 2 5 6 3 11 2 . 3 5 . . . . . 2 3 4 20 10 7 . . . . Matter Fused 110 | . . . . 3 . 2 7 . 6 4 4 10 9 10 2 . 4 2 . . . . 1 2 3 5 19 9 8 . . . . Heat Flow Errors 61 | . . . . 3 . 2 2 1 7 1 2 7 5 5 . . 3 1 . . . . . . 3 2 12 5 . . . . . Energy Discharges 56 | . . . . 3 . 2 3 1 5 . 2 2 6 2 2 . 4 1 . . . . 1 . 1 1 8 10 2 . . . . Parts Rejected 5 | . . . . . . . 2 . . . . . . . . . . . . . . . . . 1 . 1 1 . . . . . Parts Fused 10 | . . . . . . 1 2 . 2 . . . 1 1 1 . . . . . . . . . 1 1 . . . . . . . Data Loss (minor) 65 | . . . 2 1 . 1 4 . 2 3 . 3 7 3 3 . 3 . . . . . . . 3 5 15 8 2 . . . . Data Loss (major) 19 | . . . . . . . 3 1 1 1 . 2 . . . . 2 . . . . . . . . 2 4 3 . . . . . Misfires 23 | . . . . 1 . 1 1 . . 1 1 1 . 1 . . . 1 . . . . . . 3 1 2 7 2 . . . . Alerts 16 | . . . . 1 . . . 1 1 1 2 . 1 1 . . . . . . . . . . 1 . 1 3 3 . . . . Misdirections 7 | . . . . . . . . . . . 2 . . . . . . . . . . . . . . . 2 3 . . . . . Weapon Failures 19 | . . . . . . . 4 . 4 . 1 . . . . . 2 . . . . . . . . . 2 5 1 . . . . Overload Shots 74 | . . . . . . . . . 23 . 6 . . 12 . 10 . . 1 1 . 2 1 1 . . . . . . . . 17 Effects 6 | . . . . . . . . . 1 . . . . . . . . . . . . . . . . . . . . . . . 5 Energy Bleed 4 | . . . . . . . . . . . . . . . . . . . . . . . . . . . . . . . . . 4 Heat Surge 2 | . . . . . . . . . 1 . . . . . . . . . . . . . . . . . . . . . . . 1 Overflow Damage 9448 | . 41 . 15 6 46 19 . . 409 142 290 12 . 130 4 . . 3 . . . 42 . 16 192 111 457 469 840 102 285 111 5706 Projectiles 7410 | . . . . . . 5 . . 78 6 116 . . 130 4 . . 3 . . . . . 16 66 100 457 436 599 102 285 92 4915 Explosions 1938 | . 41 . 15 6 46 14 . . 331 48 174 . . . . . . . . . . 42 . . 126 11 . 33 241 . . 19 791 Melee 100 | . . . . . . . . . . 88 . 12 . . . . . . . . . . . . . . . . . . . . . Knockbacks 85 | . . . . . . 5 3 . . 10 28 . . 3 6 3 5 5 . . 2 . . 4 7 . 1 3 . . . . . Impact . | . . . . . . . . . . . . . . . . . . . . . . . . . . . . . . . . . . Kinetic 76 | . . . . . . 4 3 . . 9 26 . . 3 6 2 4 4 . . 2 . . 4 6 . 1 2 . . . . . Secondary 9 | . . . . . . 1 . . . 1 2 . . . . 1 1 1 . . . . . . 1 . . 1 . . . . . Self-Inflicted Damage 2006 | . 51 . 138 . 97 37 60 . 166 175 67 . . . . 55 . . . . . 57 . . 33 132 . 69 . . 53 102 714 Shots 50 | . 2 . 4 . 7 1 2 . 6 6 4 . . . . 2 . . . . . 1 . . 1 1 . 1 . . 1 2 9 Rammed . | . . . . . . . . . . . . . . . . . . . . . . . . . . . . . . . . . . Targets Rammed . | . . . . . . . . . . . . . . . . . . . . . . . . . . . . . . . . . . Kicked . | . . . . . . . . . . . . . . . . . . . . . . . . . . . . . . . . . . Crushed . | . . . . . . . . . . . . . . . . . . . . . . . . . . . . . . . . . . Highest Temperature 594 | . 84 18 179 268 491 366 436 263 594 255 436 269 259 276 20 174 222 155 2 5 135 40 196 196 306 360 198 421 . . . . 253 Average Temperature 96 | . 25 12 45 86 180 103 125 92 95 91 115 119 103 93 5 40 50 40 1 3 48 14 79 36 57 105 69 115 . . . . 148 Received Heat Transfer 4363 | . 12 33 234 127 432 111 486 57 312 525 531 3 84 111 43 73 51 62 29 63 34 53 28 12 85 26 17 55 93 . 49 . 532 Thermoelectric Energy+ 1412 | . . . . . . . . . . . . . . . . . . . . . . . . . . . . 1 . . . . 1411 Effects 29 | . . . . . 7 6 1 . 3 5 4 . . . . . . . . . . . . . . 1 . . . . . . 2 Shutdowns 3 | . . . . . . . 1 . 1 . . . . . . . . . . . . . . . . 1 . . . . . . . Energy Bleed 7 | . . . . . 1 1 . . 1 . 2 . . . . . . . . . . . . . . . . . . . . . 2 Interference 14 | . . . . . 3 4 . . . 5 2 . . . . . . . . . . . . . . . . . . . . . . Matter Decay 4 | . . . . . 2 1 . . 1 . . . . . . . . . . . . . . . . . . . . . . . . Damage (minor) 1 | . . . . . 1 . . . . . . . . . . . . . . . . . . . . . . . . . . . . Siege Activations 43 | . . . . . . . . . . . . . . . . . 1 2 . 1 1 1 . 1 2 . 2 3 5 . 2 . 22 Total Turns 1519 | . . . . . . . . . . . . . . . . . 15 45 . 15 15 8 . 4 27 . 20 76 36 . 21 . 1237 Longest Duration 440 | . . . . . . . . . . . . . . . . . 15 27 . 15 15 8 . 4 21 . 15 32 16 . 18 . 440 Martial Activations . | . . . . . . . . . . . . . . . . . . . . . . . . . . . . . . . . . . Shielding Activations . | . . . . . . . . . . . . . . . . . . . . . . . . . . . . . . . . . . Robots Disrupted 10 | . . . . . . . . . . . 1 . . . . . . . . . . . . . 1 . . 5 . . . . 3 Combat Hostiles 5 | . . . . . . . . . . . . . . . . . . . . . . . . . . . . 2 . . . . 3 Robots Corrupted 7 | . . . . . . . . . . 2 4 1 . . . . . . . . . . . . . . . . . . . . . Combat Hostiles 7 | . . . . . . . . . . 2 4 1 . . . . . . . . . . . . . . . . . . . . . Parts Fried 25 | . 3 . 1 . 2 . . . 9 2 6 1 . . . 1 . . . . . . . . . . . . . . . . . Impact Corruptions 3 | . . . . . . . . . . 2 . 1 . . . . . . . . . . . . . . . . . . . . . Robots Melted 6 | . . . . . 2 . . 1 . . . . . . . . . . . . . . . . . 1 . . 1 . . . 1 Combat Hostiles 4 | . . . . . 2 . . 1 . . . . . . . . . . . . . . . . . 1 . . . . . . . Parts Melted 45 | . . 1 . . 13 1 10 1 8 . . . . 2 . . . . . . . . . . . 1 1 . 2 . . . 5 Heat Transferred 25895 | . 400 150 100 . 925 1110 2960 592 3756 584 1397 50 . 1040 . 450 337 298 185 87 . 50 50 87 150 325 400 2150 2016 50 579 790 4827 Parts Sabotaged 4 | . . . . . . . . . . . 4 . . . . . . . . . . . . . . . . . . . . . . Parts Stolen 2 | . . . . . . . . . . . . . . . . . . . . . . . . 2 . . . . . . . . . Parts Stripped . | . . . . . . . . . . . . . . . . . . . . . . . . . . . . . . . . . . Power Chain Reactions 24 | . 4 . . . . . . . 8 2 5 . . . . . . . . . . . . . . . . 2 . . . . 3 Alert | -11 -10 -10 -9 -9 -8 -8 -8 -8 -7 -7 -6 -6 -5 -5 -5 -5 -4 -4 -4 -4 -4 -4 -3 -3 -3 -2 -2 -2 -2 -1 -1 -1 -1 ------- Run | Yrd Mat Min Mat Min Mat Gar Mat Gar Fac Gar Fac Gar Fac Gar Fac Gar Fac Ext Cet Arc Hub Gar Res Tes Gar Res Qua Sec Gar Acc Gar Acc Com Maximum Alert Level 5 | . 1 1 3 1 1 4 2 3 2 4 4 4 3 3 2 4 3 2 1 . . 3 2 2 5 5 3 5 5 5 5 5 5 Low Security (%) 8 | 100 51 94 14 50 82 3 . . 19 . . . . . . . . 38 55 100 100 11 . . . . . . . . . . . Level 1 11 | . 48 5 40 49 17 5 . 17 34 . . . . . 46 2 . 56 44 . . 1 11 70 6 . . . . . . . . Level 2 17 | . . . 14 . . 9 100 74 45 8 33 . 77 11 53 5 22 5 . . . 25 88 29 12 . . 16 . . . . . Level 3 24 | . . . 30 . . 59 . 8 . 72 52 41 22 88 . 45 77 . . . . 61 . . 20 43 100 35 . . . . . Level 4 11 | . . . . . . 22 . . . 18 13 58 . . . 45 . . . . . . . . 41 37 . 5 13 35 14 . 10 Level 5 14 | . . . . . . . . . . . . . . . . . . . . . . . . . 18 18 . 41 86 64 85 16 12 High Security 11 | . . . . . . . . . . . . . . . . . . . . . . . . . . . . . . . . 83 77 Max Security . | . . . . . . . . . . . . . . . . . . . . . . . . . . . . . . . . . . Peak Influence 4590 | . 326 216 945 366 265 1267 675 740 694 1246 1153 1445 807 978 583 1344 1095 415 232 144 62 1082 636 485 1794 1695 1042 1831 2677 1675 2776 2535 4590 Initial 1665 | . . 83 80 354 8 161 617 325 388 479 653 781 758 520 513 354 705 268 212 70 39 . 608 256 321 1008 944 515 1371 1605 1335 1665 1622 Average 1229 | . 158 66 489 179 94 852 613 523 371 926 756 1081 601 839 418 1032 799 234 198 113 27 753 532 323 1147 1259 937 1229 2088 1613 2080 2067 3375 Influence Increases 34767 | . 463 458 1475 137 498 1156 460 585 1147 967 1372 824 1445 718 990 1380 1503 832 155 94 133 1212 509 893 1753 1293 814 2579 1626 274 1691 1240 4091 Destroy 0b10 Robot/C 13950 | . 320 300 700 80 340 600 270 255 615 420 555 327 600 288 348 456 552 288 60 36 36 384 192 360 612 396 288 876 360 60 348 372 2256 Destroy 0b10 Robot/NC 740 | . 35 10 70 20 40 . 24 4 72 . 72 . 9 . 21 . 69 6 . . 6 . . 18 . 45 21 72 3 6 . 15 102 Destroy Leader 2074 | . 66 40 206 20 82 50 108 16 124 16 120 32 92 18 80 36 102 26 . . 12 42 30 42 18 80 38 148 42 18 42 58 270 Allied During Kill 8380 | . . 62 87 . . 58 15 61 40 101 81 248 650 227 399 470 616 285 60 36 54 426 222 274 560 516 262 812 168 84 287 444 775 Successful Hack 425 | . 5 12 25 . 5 18 6 . 33 30 21 23 30 18 38 24 13 11 . . . 9 8 27 9 25 17 . 9 . 9 . . Select Force Hacks 60 | . . . 30 . 30 . . . . . . . . . . . . . . . . . . . . . . . . . . . . Disable Machine 1212 | . 15 . 90 . . 15 12 48 120 36 264 . 27 . 54 . 27 9 9 18 9 27 9 54 36 45 72 126 18 . . 27 45 Anti-Garrison Action 3079 | . . . . . . 313 . 189 . 265 113 189 . 150 . 330 . . . . . 180 . . 330 . . . 450 . 480 90 . Destroy Structure 4250 | . 22 34 72 17 1 102 25 12 95 63 134 5 28 17 50 64 106 36 26 4 16 126 48 118 179 186 116 536 576 106 525 234 571 Partial Spotted 18 | . . . . . . . . . . . . . . . . . 18 . . . . . . . . . . . . . . . . Lose Combat Pursuer 228 | . . . 15 . . . . . 48 36 12 . 9 . . . . . . . . 18 . . 9 . . 9 . . . . 72 Miscellaneous 351 | . . . 180 . . . . . . . . . . . . . . 171 . . . . . . . . . . . . . . . Influence Decreases 30510 | . 249 464 774 1023 272 138 1226 346 1202 406 1502 495 2146 484 1461 543 2298 1001 358 157 247 130 1135 920 388 1408 1577 1666 778 1282 584 1481 2369 Entered New Map 12620 | . . 131 128 555 15 88 650 176 352 206 593 335 687 224 465 153 639 281 168 107 75 . 474 200 108 786 735 401 458 1072 334 1111 913 Time Decay 8660 | . 249 273 526 428 237 . 356 . 640 . 589 . 534 . 526 . 514 490 110 50 172 . 286 510 . 342 562 580 . 150 . 30 506 Lost Part 1190 | . . 40 40 40 20 50 100 30 90 110 140 . 20 30 10 20 80 10 . . . 10 . . 20 . . 30 20 . 10 10 260 Lost Ally 6940 | . . 20 80 . . . 120 140 120 90 180 160 630 230 460 370 790 220 80 . . 120 100 210 260 280 280 380 300 60 240 330 690 Purge Threat 1100 | . . . . . . . . . . . . . 275 . . . 275 . . . . . 275 . . . . 275 . . . . . Squads Dispatched 205 | . 3 1 8 . 4 . 4 . 15 . 19 1 14 . 8 . 12 2 . . 1 . 3 9 . 12 6 22 . 6 . 17 38 Investigation 26 | . 1 . 6 . 1 . . . 1 . 3 . 3 . 2 . 2 . . . . . . 3 . 2 2 . . . . . . Extermination 30 | . . . . . . . . . 5 . 4 . 3 . 3 . 2 . . . . . 1 3 . 2 3 2 . . . . 2 Reinforcement 58 | . 2 . 1 . 2 . . . 6 . 4 . 4 . 3 . 7 2 . . 1 . 2 3 . 6 1 11 . 1 . 1 1 Assault 71 | . . 1 1 . . . 1 . . . 5 1 1 . . . 1 . . . . . . . . 2 . 5 . 2 . 16 35 Garrison 20 | . . . . . 1 . 3 . 3 . 3 . 3 . . . . . . . . . . . . . . 4 . 3 . . . Intercept . | . . . . . . . . . . . . . . . . . . . . . . . . . . . . . . . . . . Searches Triggered . | . . . . . . . . . . . . . . . . . . . . . . . . . . . . . . . . . . Construction Impeded 10 | . . . . . 1 . . . 1 . 1 . 1 . 1 . 1 1 . . . . . . . 2 . 1 . . . . . Haulers Reinforced 10 | . . . . . . . . . . . 1 . 1 . . . 3 . . . . . 1 . . 2 . 1 . 1 . . . Active Scanning Responses . | . . . . . . . . . . . . . . . . . . . . . . . . . . . . . . . . . . Cargo Convoy Interrupts 3 | . . . . . . . . . . . 1 . 1 . . . 1 . . . . . . . . . . . . . . . . Stealth | -11 -10 -10 -9 -9 -8 -8 -8 -8 -7 -7 -6 -6 -5 -5 -5 -5 -4 -4 -4 -4 -4 -4 -3 -3 -3 -2 -2 -2 -2 -1 -1 -1 -1 --------- Run | Yrd Mat Min Mat Min Mat Gar Mat Gar Fac Gar Fac Gar Fac Gar Fac Gar Fac Ext Cet Arc Hub Gar Res Tes Gar Res Qua Sec Gar Acc Gar Acc Com Distress Signals 56 | . 1 . 2 . . . 3 . 3 . 3 . 2 . 4 . 6 3 1 . 3 . 2 . . 4 1 4 2 . . 1 11 Communications Jammed 2282 | . . . . . . . . . 26 . 62 . 114 . 271 . 322 69 . . . . 101 124 . 57 2 401 . . . 476 257 Distress Signals 2273 | . . . . . . . . . 21 . 62 . 111 . 271 . 322 69 . . . . 101 124 . 57 1 401 . . . 476 257 Times Spotted 1389 | . 22 15 51 25 21 25 32 32 63 32 74 28 47 30 37 49 79 29 6 4 12 29 14 31 67 31 32 59 41 12 42 29 289 Peak Tracking Total 53 | . 4 4 4 20 5 5 7 6 7 10 11 3 12 4 4 7 11 3 5 2 3 5 3 5 7 7 6 6 5 3 8 7 53 Tactical Retreats 20 | . . . 1 . . . . . 4 1 1 . 1 . . . . . . . . 2 . . 1 . . 1 . . . . 8 Traps | -11 -10 -10 -9 -9 -8 -8 -8 -8 -7 -7 -6 -6 -5 -5 -5 -5 -4 -4 -4 -4 -4 -4 -3 -3 -3 -2 -2 -2 -2 -1 -1 -1 -1 ------- Run | Yrd Mat Min Mat Min Mat Gar Mat Gar Fac Gar Fac Gar Fac Gar Fac Gar Fac Ext Cet Arc Hub Gar Res Tes Gar Res Qua Sec Gar Acc Gar Acc Com Traps Triggered 77 | . 1 . 3 . . 5 1 2 6 2 . 12 5 6 1 10 2 2 . . . 1 . . 3 2 1 1 2 . 7 . 2 Indirectly 1 | . . . . . . . . . . 1 . . . . . . . . . . . . . . . . . . . . . . . Trap Hack Attempts . | . . . . . . . . . . . . . . . . . . . . . . . . . . . . . . . . . . Triggered . | . . . . . . . . . . . . . . . . . . . . . . . . . . . . . . . . . . Disarmed . | . . . . . . . . . . . . . . . . . . . . . . . . . . . . . . . . . . Reprogrammed . | . . . . . . . . . . . . . . . . . . . . . . . . . . . . . . . . . . Reused . | . . . . . . . . . . . . . . . . . . . . . . . . . . . . . . . . . . Traps Extracted . | . . . . . . . . . . . . . . . . . . . . . . . . . . . . . . . . . . Installed . | . . . . . . . . . . . . . . . . . . . . . . . . . . . . . . . . . . Triggered . | . . . . . . . . . . . . . . . . . . . . . . . . . . . . . . . . . . Machines | -11 -10 -10 -9 -9 -8 -8 -8 -8 -7 -7 -6 -6 -5 -5 -5 -5 -4 -4 -4 -4 -4 -4 -3 -3 -3 -2 -2 -2 -2 -1 -1 -1 -1 ---------- Run | Yrd Mat Min Mat Min Mat Gar Mat Gar Fac Gar Fac Gar Fac Gar Fac Gar Fac Ext Cet Arc Hub Gar Res Tes Gar Res Qua Sec Gar Acc Gar Acc Com Machines Disabled 177 | . 1 1 6 . . 5 1 10 10 7 23 3 3 3 6 8 3 1 1 2 1 9 1 7 13 6 8 16 7 . 6 4 5 Max in Single Turn 6 | . 1 1 2 . . 2 1 1 3 1 6 1 1 1 1 1 . 1 1 . 1 1 . 1 1 1 1 1 1 . 1 2 1 Garrison Access 6 | . . . . . . . . . . . 1 . 1 . 1 . . . . . . . . . . 1 1 . . . . 1 . Garrison Relay 41 | . . . . . . 2 . 3 . 4 . 3 . 3 . 6 . . . . . 5 . . 5 . . . 5 . 5 . . Phase Generator 4 | . . . . . . 1 . 1 . . . 1 . 1 . . . . . . . . . . . . . . . . . . . Machines Repaired . | . . . . . . . . . . . . . . . . . . . . . . . . . . . . . . . . . . Machines Dismantled . | . . . . . . . . . . . . . . . . . . . . . . . . . . . . . . . . . . Machines Sabotaged . | . . . . . . . . . . . . . . . . . . . . . . . . . . . . . . . . . . Overloaded Fab Kills . | . . . . . . . . . . . . . . . . . . . . . . . . . . . . . . . . . . Hacking | -11 -10 -10 -9 -9 -8 -8 -8 -8 -7 -7 -6 -6 -5 -5 -5 -5 -4 -4 -4 -4 -4 -4 -3 -3 -3 -2 -2 -2 -2 -1 -1 -1 -1 --------- Run | Yrd Mat Min Mat Min Mat Gar Mat Gar Fac Gar Fac Gar Fac Gar Fac Gar Fac Ext Cet Arc Hub Gar Res Tes Gar Res Qua Sec Gar Acc Gar Acc Com Machines Accessed 143 | . 4 1 11 2 3 4 4 1 12 3 11 3 13 2 14 4 3 4 1 . 3 3 2 8 3 6 10 3 1 1 1 . 2 Terminals 93 | . 4 1 9 . 1 4 1 1 6 3 4 3 4 2 10 4 2 3 1 . 2 3 2 3 3 5 8 1 1 . 1 . 1 Fabricators 2 | . . . . . . . . . . . . . 1 . . . 1 . . . . . . . . . . . . . . . . Repair Stations 7 | . . . . . . . . . 1 . 1 . 3 . . . . . . . . . . 1 . . . . . . . . 1 Recycling Units 3 | . . . . . . . . . . . . . 1 . 1 . . 1 . . . . . . . . . . . . . . . Scanalyzers 19 | . . . 2 . 1 . 2 . 3 . 3 . 2 . 1 . . . . . . . . 3 . . 1 1 . . . . . Garrison Access 17 | . . . . . 1 . 1 . 2 . 3 . 2 . 2 . . . . . 1 . . 1 . 1 1 1 . 1 . . . Total Hacks 341 | . 11 4 33 2 10 9 15 3 25 8 27 3 33 2 40 11 7 9 3 . 14 7 2 16 6 13 19 3 1 1 2 . 2 Successful 140 | . 5 2 12 2 6 3 7 . 10 3 10 3 18 2 13 3 3 4 . . 8 1 1 5 1 5 8 2 1 1 1 . . Failed 197 | . 6 2 21 . 3 6 7 3 15 5 16 . 15 . 27 8 4 5 3 . 6 6 1 11 5 8 10 1 . . 1 . 2 Catastrophic 33 | . . 1 1 . . 1 . . 5 . 2 . 2 . 6 3 2 . . . . 1 1 2 . 3 2 1 . . . . . Database Lockouts 4 | . . . . . 1 . 1 . . . 1 . . . . . . . . . . . . . . . 1 . . . . . . Manual 122 | . 5 4 11 . 6 . . . 5 . 10 . 12 . 23 . 4 9 . . 10 . 2 3 . 10 7 . . . . . 1 Terminals 229 | . 11 4 28 . 4 9 5 3 13 8 7 3 9 2 31 11 4 8 3 . 13 7 2 8 6 11 14 1 1 . 2 . 1 Fabricators 4 | . . . . . . . . . . . . . 1 . . . 3 . . . . . . . . . . . . . . . . Repair Stations 14 | . . . . . . . . . 1 . 5 . 6 . . . . . . . . . . 1 . . . . . . . . 1 Recycling Units 4 | . . . . . . . . . . . . . 1 . 2 . . 1 . . . . . . . . . . . . . . . Scanalyzers 56 | . . . 5 . 4 . 9 . 7 . 9 . 12 . 2 . . . . . . . . 5 . . 2 1 . . . . . Garrison Access 32 | . . . . . 2 . 1 . 4 . 6 . 4 . 5 . . . . . 1 . . 2 . 2 3 1 . 1 . . . Terminal Hacks 57 | . 4 2 6 2 . 3 . . 4 3 1 3 3 2 5 3 1 1 . . 4 1 . 2 1 . 3 1 1 . 1 . . Record 5 | . . . 1 . . . . . 1 . . . . . . . . . . . . . . . . . 3 . . . . . . Part Schematic 1 | . . . . . . . . . . . . . 1 . . . . . . . . . . . . . . . . . . . . Robot Analysis 6 | . 3 2 . . . . . . 1 . . . . . . . . . . . . . . . . . . . . . . . . Prototype ID Bank 2 | . . . . . . . . . . . . . 1 . . . . . . . 1 . . . . . . . . . . . . Open Door 6 | . . . . 2 . 1 . . . . . 1 . . . 1 . . . . . . . . . . . 1 . . . . . Branch Access Points 5 | . . . . . . . . . 1 . 1 . 1 . . . 1 . . . . . . 1 . . . . . . . . . Emergency Access Points 4 | . . . . . . . . . . 1 . 1 . 1 . . . . . . . . . . 1 . . . . . . . . Fabricator Index 1 | . . . . . . . . . 1 . . . . . . . . . . . . . . . . . . . . . . . . Locate Traps 2 | . 1 . . . . . . . . . . . . . . . . . . . 1 . . . . . . . . . . . . Dispatch Records 2 | . . . . . . . . . . . . . . . 1 . . . . . 1 . . . . . . . . . . . . Transport Status 3 | . . . . . . . . . . . . . . . 3 . . . . . . . . . . . . . . . . . . Recall Investigation 1 | . . . . . . . . . . . . . . . . . . . . . . . . 1 . . . . . . . . . Recall Reinforcements 1 | . . . . . . . . . . . . . . . . . . 1 . . . . . . . . . . . . . . . Hauler Manifests 1 | . . . . . . . . . . . . . . . 1 . . . . . . . . . . . . . . . . . . Zone Layout 6 | . . . 5 . . . . . . . . . . . . . . . . . 1 . . . . . . . . . . . . Garrison Registry 4 | . . . . . . 1 . . . 1 . . . . . . . . . . . 1 . . . . . . 1 . . . . Patrol Navigation 3 | . . . . . . . . . . . . . . 1 . 1 . . . . . . . . . . . . . . 1 . . Security Stations 4 | . . . . . . 1 . . . 1 . 1 . . . 1 . . . . . . . . . . . . . . . . . Fabricator Hacks 2 | . . . . . . . . . . . . . . . . . 2 . . . . . . . . . . . . . . . . Load Schematic 1 | . . . . . . . . . . . . . . . . . 1 . . . . . . . . . . . . . . . . Build 1 | . . . . . . . . . . . . . . . . . 1 . . . . . . . . . . . . . . . . Repair Station Hacks 2 | . . . . . . . . . . . 1 . 1 . . . . . . . . . . . . . . . . . . . . Scan Component 2 | . . . . . . . . . . . 1 . 1 . . . . . . . . . . . . . . . . . . . . Recycling Unit Hacks . | . . . . . . . . . . . . . . . . . . . . . . . . . . . . . . . . . . Scanalyzer 26 | . . . 1 . 2 . 6 . 1 . 3 . 10 . 2 . . . . . . . . . . . 1 . . . . . . Insert Component 10 | . . . . . . . 3 . . . 2 . 4 . 1 . . . . . . . . . . . . . . . . . . Analyze 7 | . . . . . . . 2 . . . . . 5 . . . . . . . . . . . . . . . . . . . . Retrieve Study 9 | . . . 1 . 2 . 1 . 1 . 1 . 1 . 1 . . . . . . . . . . . 1 . . . . . . Garrison Access Hacks 18 | . . . . . 1 . 1 . 2 . 3 . 2 . 2 . . . . . 1 . . 1 . 1 2 1 . 1 . . . Unlock Access 13 | . . . . . 1 . 1 . 2 . 3 . 1 . 1 . . . . . 1 . . 1 . . . 1 . 1 . . . Seal Access 4 | . . . . . . . . . . . . . 1 . 1 . . . . . . . . . . 1 1 . . . . . . Coupler Status 1 | . . . . . . . . . . . . . . . . . . . . . . . . . . . 1 . . . . . . Unauthorized Hacks 35 | . 1 . 5 . 3 . . . 3 . 2 . 2 . 4 . . 3 . . 3 . 1 2 . 4 2 . . . . . . Terminals 26 | . 1 . 4 . 2 . . . 2 . . . 1 . 3 . . 2 . . 3 . 1 1 . 4 2 . . . . . . Track 1 | . . . . . . . . . 1 . . . . . . . . . . . . . . . . . . . . . . . . Botnet 16 | . 1 . 2 . 1 . . . 1 . . . 1 . 1 . . 1 . . 2 . 1 1 . 2 2 . . . . . . Operators 3 | . . . 1 . . . . . . . . . . . . . . . . . 1 . . . . 1 . . . . . . . Skim 6 | . . . 1 . 1 . . . . . . . . . 2 . . 1 . . . . . . . 1 . . . . . . . Fabricators . | . . . . . . . . . . . . . . . . . . . . . . . . . . . . . . . . . . Repair Stations . | . . . . . . . . . . . . . . . . . . . . . . . . . . . . . . . . . . Recycling Units 1 | . . . . . . . . . . . . . . . . . . 1 . . . . . . . . . . . . . . . Reject 1 | . . . . . . . . . . . . . . . . . . 1 . . . . . . . . . . . . . . . Scanalyzers 2 | . . . 1 . 1 . . . . . . . . . . . . . . . . . . . . . . . . . . . . Extract 2 | . . . 1 . 1 . . . . . . . . . . . . . . . . . . . . . . . . . . . . Garrison Access 6 | . . . . . . . . . 1 . 2 . 1 . 1 . . . . . . . . 1 . . . . . . . . . Reprogram 6 | . . . . . . . . . 1 . 2 . 1 . 1 . . . . . . . . 1 . . . . . . . . . Data Cores Recovered 5 | . 1 . . . . . . . . . . . 1 . 1 . . . . . 2 . . . . . . . . . . . . Used 2 | . 1 . . . . . . . . . . . . . . . . . . . 1 . . . . . . . . . . . . Hacking Detections 118 | . 4 1 10 . 1 3 3 1 11 3 11 1 12 1 13 2 3 3 1 . 3 3 2 7 2 5 6 1 1 1 1 . 2 Full Trace Events 22 | . 1 1 2 . . 2 1 . 1 1 2 . 2 . 1 1 2 . . . . 1 . 1 . 2 1 . . . . . . Feedback Events 2 | . . . . . . . . . . . . . 1 . . . . . . . . . . . . 1 . . . . . . . Corruption 2 | . . . . . . . . . . . . . 1 . . . . . . . . . . . . 1 . . . . . . . Feedback Blocked . | . . . . . . . . . . . . . . . . . . . . . . . . . . . . . . . . . . Robot Schematics Acquired 8 | . . . . . . . . . . . . . . . . . . . . . . . . 2 . . 3 3 . . . . . Robots Built . | . . . . . . . . . . . . . . . . . . . . . . . . . . . . . . . . . . Authchips . | . . . . . . . . . . . . . . . . . . . . . . . . . . . . . . . . . . Time . | . . . . . . . . . . . . . . . . . . . . . . . . . . . . . . . . . . Total Robot Build Rating . | . . . . . . . . . . . . . . . . . . . . . . . . . . . . . . . . . . Part Schematics Acquired 34 | . . . 7 . 4 . 2 . . . . . 4 . . . . . . . . . . 4 . . 6 7 . . . . . Parts Built 2 | . . . . . . . . . . . . . . . . . 2 . . . . . . . . . . . . . . . . Authchips . | . . . . . . . . . . . . . . . . . . . . . . . . . . . . . . . . . . Time 25 | . . . . . . . . . . . . . . . . . 25 . . . . . . . . . . . . . . . . Total Part Build Rating 2 | . . . . . . . . . . . . . . . . . 2 . . . . . . . . . . . . . . . . Part Studies Acquired 6 | . . . . . 1 . . . 1 . 1 . 1 . 1 . . . . . . . . . . . 1 . . . . . . Parts Repaired . | . . . . . . . . . . . . . . . . . . . . . . . . . . . . . . . . . . Time . | . . . . . . . . . . . . . . . . . . . . . . . . . . . . . . . . . . Parts Recycled . | . . . . . . . . . . . . . . . . . . . . . . . . . . . . . . . . . . Recycled Matter . | . . . . . . . . . . . . . . . . . . . . . . . . . . . . . . . . . . Retrieved Matter . | . . . . . . . . . . . . . . . . . . . . . . . . . . . . . . . . . . Retrieved Components . | . . . . . . . . . . . . . . . . . . . . . . . . . . . . . . . . . . Parts Scanalyzed 6 | . . . . . . . 2 . . . 1 . 3 . . . . . . . . . . . . . . . . . . . . Part Schematics Acquired 5 | . . . . . . . 2 . . . . . 3 . . . . . . . . . . . . . . . . . . . . Parts Damaged . | . . . . . . . . . . . . . . . . . . . . . . . . . . . . . . . . . . Bothacking | -11 -10 -10 -9 -9 -8 -8 -8 -8 -7 -7 -6 -6 -5 -5 -5 -5 -4 -4 -4 -4 -4 -4 -3 -3 -3 -2 -2 -2 -2 -1 -1 -1 -1 ------------ Run | Yrd Mat Min Mat Min Mat Gar Mat Gar Fac Gar Fac Gar Fac Gar Fac Gar Fac Ext Cet Arc Hub Gar Res Tes Gar Res Qua Sec Gar Acc Gar Acc Com Used RIF Installer 14 | . . . . . . 1 . 2 . 2 . 2 . 1 . 1 . . . . . 1 . . 1 . . . 2 . 1 . . Code Merge 1 | . . . . . . . . . . . . . . . . 1 . . . . . . . . . . . . . . . . . Command Fork 3 | . . . . . . . . . . . . 1 . . . . . . . . . 1 . . . . . . . . 1 . . Threat Obfuscator 2 | . . . . . . 1 . . . . . 1 . . . . . . . . . . . . . . . . . . . . . Signal Jammer 1 | . . . . . . . . 1 . . . . . . . . . . . . . . . . . . . . . . . . . Zone Cloak 1 | . . . . . . . . . . . . . . . . . . . . . . . . . 1 . . . . . . . . Robot Detection 1 | . . . . . . . . 1 . . . . . . . . . . . . . . . . . . . . . . . . . Watcher Feeds 1 | . . . . . . . . . . . . . . 1 . . . . . . . . . . . . . . . . . . . Structural Interface 1 | . . . . . . . . . . 1 . . . . . . . . . . . . . . . . . . . . . . . Autoassimilate 2 | . . . . . . . . . . 1 . . . . . . . . . . . . . . . . . . 1 . . . . Crosswire 1 | . . . . . . . . . . . . . . . . . . . . . . . . . . . . . 1 . . . . Robots Hacked 392 | . . . . . . . 4 12 16 3 17 19 32 15 37 21 33 7 . 1 3 3 9 7 15 18 10 20 19 6 18 11 36 Non-combat 72 | . . . . . . . . . 10 . 6 . 15 . 13 . 7 . . . . . 1 2 . 6 2 3 . 1 . 4 2 Combat 320 | . . . . . . . 4 12 6 3 11 19 17 15 24 21 26 7 . 1 3 3 8 5 15 12 8 17 19 5 18 7 34 Autoassimilated 107 | . . . . . . . . . . . 1 5 7 8 6 3 5 2 . 1 1 2 4 1 3 4 1 6 6 2 7 5 27 Robot Hacks Applied 317 | . . . . . . . 4 12 17 3 18 14 38 10 32 19 31 5 . . 2 1 8 6 12 15 9 15 13 4 11 7 11 parse_system 6 | . . . . . . . . . 1 . 1 . . 2 . . . . . . . . . . . . . 1 . . . 1 . deconstruct_machine 1 | . . . . . . . . . . . . . 1 . . . . . . . . . . . . . . . . . . . . ignore_repairs 1 | . . . . . . . . . . . . . . . . . . . . . . . . . . 1 . . . . . . . find_fabricator 2 | . . . . . . . . . . . 2 . . . . . . . . . . . . . . . . . . . . . . drop_inventory 28 | . . . . . . . . . 5 . 1 . 10 . 5 . 2 . . . . . . 1 . 3 1 . . . . . . recall_reinforcements 1 | . . . . . . . . . . . . . . . . . . . . . . . . . . . . 1 . . . . . locate_stockpiles 2 | . . . . . . . . . . . 1 . 1 . . . . . . . . . . . . . . . . . . . . ignore_parts 2 | . . . . . . . . . . . . . . . 2 . . . . . . . . . . . . . . . . . . purge_threat 8 | . . . . . . . . . . . . . 2 . . . 2 . . . . . 2 . . . . 2 . . . . . locate_traps 1 | . . . . . . . . . . . . . . . . . . . . . . . 1 . . . . . . . . . . summon_haulers 1 | . . . . . . . . . . . . . . . 1 . . . . . . . . . . . . . . . . . . map_route 1 | . . . . . . . . . . . . . . . . . . . . . . . . . . 1 . . . . . . . mark_security 1 | . . . . . . . . . . . . . . . 1 . . . . . . . . . . . . . . . . . . disable_scanner 1 | . . . . . . . . . . . . . . . . . . . . . . . . . . . . 1 . . . . . find_garrison 2 | . . . . . . . . . . . . . . . . . 1 . . . . . . . . 1 . . . . . . . scatter_targeting 2 | . . . . . . . . . . . . . . 1 . . . . . . . . . . . . . . 1 . . . . broadcast_data 3 | . . . . . . . . . . . . . . . . 1 . 1 . . . . . . . . . . . . . . 1 disrupt_area 2 | . . . . . . . . . . . . . . . . 1 . . . . . . . . . . . . . . . . 1 disable_weapons 1 | . . . . . . . . . . . . . . . . . . . . . . . . . . . . . . . . 1 . reboot_system 2 | . . . . . . . . . . . . . . . 1 . 1 . . . . . . . . . . . . . . . . overwrite_iff 41 | . . . . . . . 2 2 2 . 5 1 4 1 1 1 5 . . . . 1 . 1 3 1 2 1 2 1 2 . 3 formatsys_low 28 | . . . . . . . . . 1 . . . 11 . 3 . 4 . . . . . 1 . . 2 . 1 . 1 . 4 . formatsys_high 180 | . . . . . . . 2 10 8 3 8 13 9 6 18 16 16 4 . . 2 . 4 4 9 6 6 8 10 2 9 1 6 Relay Couplers Released 178 | . . . . . . 10 . 10 . 19 1 13 . 15 . 26 . . . . . 20 . 3 20 . . . 17 . 22 2 . Machine Destruction 163 | . . . . . . 6 . 10 . 19 1 13 . 11 . 26 . . . . . 20 . . 20 . . . 17 . 18 2 . Programmers 15 | . . . . . . 4 . . . . . . . 4 . . . . . . . . . 3 . . . . . . 4 . . Attached 77 | . . . . . . . 3 3 4 6 9 8 9 5 6 3 5 2 . . 1 1 . 1 2 . 1 1 3 . 1 . 3 Crosswired 11 | . . . . . . . . . . . . . . . . . . . . . . . . . . . . . 8 . 3 . . Merged Code Value 587 | . . . . . . . . . . . . . . . . 121 14 . . . . 64 . 30 92 . 6 . 144 . 116 . . Fabnet Peak Effective % . | . . . . . . . . . . . . . . . . . . . . . . . . . . . . . . . . . . Robots Rewired 71 | . . . . . . 4 . . . 3 . 11 . . . 12 . 22 . . . 2 . . 13 . . 2 . . 2 . . Allies Hacked 36 | . . . . . . 1 . 1 1 . . . 6 4 4 4 1 1 . . . . . . 1 2 4 2 . . 1 . 3 Hacks Repelled 5 | . . . . . . . . . . . . . . . . 2 . . . . . . . . 3 . . . . . . . . Allies | -11 -10 -10 -9 -9 -8 -8 -8 -8 -7 -7 -6 -6 -5 -5 -5 -5 -4 -4 -4 -4 -4 -4 -3 -3 -3 -2 -2 -2 -2 -1 -1 -1 -1 -------- Run | Yrd Mat Min Mat Min Mat Gar Mat Gar Fac Gar Fac Gar Fac Gar Fac Gar Fac Ext Cet Arc Hub Gar Res Tes Gar Res Qua Sec Gar Acc Gar Acc Com Total Allies 541 | . . 4 4 . . 5 4 12 11 8 17 33 47 17 34 34 40 29 . 1 3 8 11 11 34 19 15 20 21 9 31 15 44 Largest Group 36 | . . 3 4 . . 4 2 5 3 5 6 25 33 27 35 36 32 20 18 12 14 13 17 15 23 26 15 18 7 11 27 23 11 Highest-Rated Group 2343 | . . 63 64 . . 129 59 78 84 214 176 835 1250 1047 1391 1372 1285 972 894 592 783 997 1188 1141 1325 1727 975 1681 900 1049 2343 1774 788 Highest-Rated Ally 344 | . . 31 31 . . 85 39 16 32 80 111 99 106 106 142 142 142 142 142 142 142 142 142 142 142 183 344 344 304 294 294 219 216 Total Orders 262 | . . . . 2 . . . . . 5 . 10 13 16 22 16 30 . . . . . . 2 19 1 10 21 25 . 11 . 59 STAY 115 | . . . . . . . . . . 3 . 5 . 3 8 10 8 . . . . . . 1 12 . 7 10 12 . 6 . 30 ROAM 3 | . . . . . . . . . . . . . . . . 1 . . . . . . . . . . . . 2 . . . . FOLLOW 79 | . . . . . . . . . . 2 . 4 4 7 6 4 11 . . . . . . 1 7 . 3 5 8 . 5 . 12 GUARD 9 | . . . . . . . . . . . . 1 . . . . . . . . . . . . . . . 2 3 . . . 3 AID 22 | . . . . . . . . . . . . . 2 1 2 1 . . . . . . . . . . . 2 . . . . 14 DROP 5 | . . . . . . . . . . . . . . 1 . . 2 . . . . . . . . 1 . 1 . . . . . PICKUP 19 | . . . . . . . . . . . . . 7 4 2 . 6 . . . . . . . . . . . . . . . . COLLECT 8 | . . . . . . . . . . . . . . . 4 . 3 . . . . . . . . . . 1 . . . . . EXPLORE 1 | . . . . 1 . . . . . . . . . . . . . . . . . . . . . . . . . . . . . RETURN 1 | . . . . 1 . . . . . . . . . . . . . . . . . . . . . . . . . . . . . Ally Attacks 3978 | . . 5 56 . . 19 25 83 30 40 83 123 288 109 188 296 297 133 56 24 30 102 66 134 279 233 151 448 113 35 124 243 165 Total Damage 134104 | . . 80 702 . . 614 319 1267 1050 953 2646 2727 8862 3466 6134 6299 11320 3919 1388 636 1194 4108 2511 6028 9127 8000 4343 17810 3323 1100 4707 11357 8114 Kills 717 | . . 2 9 . . 9 3 15 5 7 13 21 57 18 37 38 71 27 7 3 5 20 17 34 43 44 23 89 15 5 22 35 23 Allies Corrupted 51 | . . . . . . . . . . . 2 1 5 1 1 1 4 . . . 1 . 1 3 . 1 8 . 2 . 3 3 14 Allies Melted 4 | . . . . . . . . . . 1 . . . . . . 1 . . . . . . . . 1 . . . . . . 1 X0-1V1 Amusement Gains 431 | . 10 . 15 50 . 40 10 . 25 8 . . . . . . . 10 . . 10 20 . . 30 25 20 69 . 3 . 1 85 Good Acts 263 | . . 5 9 5 6 5 9 11 13 3 13 9 17 13 13 8 8 7 1 . . 2 2 8 17 1 2 17 8 1 9 2 39 Bad Acts 116 | . . 1 6 . 2 3 1 2 12 11 16 2 4 . . 4 . 3 1 1 1 6 2 6 4 3 4 . 9 1 2 . 9 Intel | -11 -10 -10 -9 -9 -8 -8 -8 -8 -7 -7 -6 -6 -5 -5 -5 -5 -4 -4 -4 -4 -4 -4 -3 -3 -3 -2 -2 -2 -2 -1 -1 -1 -1 ------- Run | Yrd Mat Min Mat Min Mat Gar Mat Gar Fac Gar Fac Gar Fac Gar Fac Gar Fac Ext Cet Arc Hub Gar Res Tes Gar Res Qua Sec Gar Acc Gar Acc Com Active Infowar (turns) 7295 | . . . 599 . 3 297 108 . 635 . . . 50 . . . 277 . . . 2 41 . . . . . . . . . . 5283 Optics 5283 | . . . . . . . . . . . . . . . . . . . . . . . . . . . . . . . . . 5283 IFF 3 | . . . . . . . . . . . . . . . . . . . . . . . . . . . . . . . . . 3 Terrain 324 | . . . 272 . 3 . . . . . . . 49 . . . . . . . . . . . . . . . . . . . . Structural 421 | . . . . . . 136 108 . 177 . . . . . . . . . . . . . . . . . . . . . . . . Seismic 760 | . . . 599 . . 161 . . . . . . . . . . . . . . . . . . . . . . . . . . . T.N.C. 912 | . . . . . . . . . 635 . . . . . . . 277 . . . . . . . . . . . . . . . . Cloaking 3 | . . . . . . . . . . . . . 1 . . . . . . . 2 . . . . . . . . . . . . Spoofing 41 | . . . . . . . . . . . . . . . . . . . . . . 41 . . . . . . . . . . . Robot Analysis Total 6 | . 3 2 . . . . . . 1 . . . . . . . . . . . . . . . . . . . . . . . . Derelict Logs Recovered 5 | . . 3 . 2 . . . . . . . . . . . . . . . . . . . . . . . . . . . . . Drone Launches 4 | . . . . 1 . . . . . . . . . . . . . . . . . . . . . . . . . . . . 3 Drone Recoveries 1 | . . . . 1 . . . . . . . . . . . . . . . . . . . . . . . . . . . . . Exploration | -11 -10 -10 -9 -9 -8 -8 -8 -8 -7 -7 -6 -6 -5 -5 -5 -5 -4 -4 -4 -4 -4 -4 -3 -3 -3 -2 -2 -2 -2 -1 -1 -1 -1 ------------- Run | Yrd Mat Min Mat Min Mat Gar Mat Gar Fac Gar Fac Gar Fac Gar Fac Gar Fac Ext Cet Arc Hub Gar Res Tes Gar Res Qua Sec Gar Acc Gar Acc Com Turns Passed 47080 | 47 691 674 1474 1053 642 1393 815 1306 2283 1686 1854 1366 1518 1385 1479 1915 1411 1291 230 116 407 1170 626 1393 2225 765 1677 1790 2455 317 2550 454 6622 Spaces Moved 25337 | 46 534 616 914 645 337 848 419 776 1400 940 1008 1003 1132 901 1147 1194 911 650 101 39 170 627 293 706 1240 434 1014 1021 1347 112 998 167 1647 Core 36 | 7 . . . . . . . . . . 1 . . . . . . . . . . . . . . . . . . . . . 28 Treads 10466 | . . . . . . . . . . . . . . . . . 11 574 101 39 170 627 293 706 1240 434 1014 1014 1347 112 998 167 1619 Legs 2 | . . . . . . . . . . . 2 . . . . . . . . . . . . . . . . . . . . . . Wheels 14826 | 39 534 616 914 645 337 848 419 776 1400 940 1005 1003 1132 901 1147 1194 900 76 . . . . . . . . . . . . . . . Hover . | . . . . . . . . . . . . . . . . . . . . . . . . . . . . . . . . . . Flight . | . . . . . . . . . . . . . . . . . . . . . . . . . . . . . . . . . . Fastest Speed 50 | 50 90 90 105 150 120 122 128 120 108 108 108 108 108 110 107 107 105 160 160 160 160 160 160 147 146 146 141 141 141 225 225 225 50 Average Speed 146 | 86 95 95 121 150 123 134 139 144 129 150 131 108 109 110 107 126 121 163 160 160 160 160 191 164 146 146 142 141 143 225 225 225 275 Slowest Speed 2050 | 100 105 105 225 150 150 165 240 215 160 175 2050 126 130 110 110 150 295 190 240 160 160 240 240 240 147 146 146 141 145 225 225 225 340 Overloaded Moves . | . . . . . . . . . . . . . . . . . . . . . . . . . . . . . . . . . . Propulsion Burnouts . | . . . . . . . . . . . . . . . . . . . . . . . . . . . . . . . . . . Robots Hopped . | . . . . . . . . . . . . . . . . . . . . . . . . . . . . . . . . . . Potential Cave-ins 24 | . . . . . . 8 . . . . . . . . . . . . . . . . . . . . . . 12 . . . 4 Cave-ins Triggered 1 | . . . . . . 1 . . . . . . . . . . . . . . . . . . . . . . . . . . . Spacefolds 3 | . . . . . . . . . . . . . . . . . . . . . . . . . . . . 3 . . . . . Exploration Rate (%) 61 | 3 90 97 83 97 37 96 44 73 45 80 41 89 31 89 35 93 17 86 63 71 22 94 15 82 98 25 96 69 88 5 96 8 43 Regions Visited 33 Branch Regions 10 Pre-discovered Areas 2 | . . 1 . 1 . . . . . . . . . . . . . . . . . . . . . . . . . . . . . Known Exits Taken 15 | . . . 1 1 1 . 1 . 1 . 1 . 1 . 1 . 1 1 . . 1 . 1 1 . . . 1 . 1 . . . Unknown Exits Taken 8 | 1 1 1 . . . . . . . . . . . . . . . . 1 1 . . . . . 1 1 . . . . 1 . Scrap Searched 2 | . . 1 . 1 . . . . . . . . . . . . . . . . . . . . . . . . . . . . . Spaces Dug 216 | . . . . . . . . . 19 . 13 . 9 . 20 4 3 2 6 . 2 . . 13 15 6 9 11 36 7 31 6 4 Terrain Destroyed 1997 | . 20 39 69 28 . 132 26 1 111 34 122 1 9 6 23 48 3 12 8 . 6 80 . 20 124 50 61 102 180 23 223 43 393 Melee 29 | . . . . . . . . . 14 . 6 . 9 . . . . . . . . . . . . . . . . . . . . Projectile 361 | . . . . . . . 1 1 11 2 30 1 . 6 23 6 3 12 8 . 6 . . 20 25 9 16 33 46 7 37 6 52 AOE 1590 | . 20 39 69 28 . 132 25 . 86 32 86 . . . . 42 . . . . . 80 . . 99 41 45 69 134 16 186 37 324 Terrain Rammed . | . . . . . . . . . . . . . . . . . . . . . . . . . . . . . . . . . . Walls Destroyed . | . . . . . . . . . . . . . . . . . . . . . . . . . . . . . . . . . . Machines Disabled . | . . . . . . . . . . . . . . . . . . . . . . . . . . . . . . . . . . Actions | -11 -10 -10 -9 -9 -8 -8 -8 -8 -7 -7 -6 -6 -5 -5 -5 -5 -4 -4 -4 -4 -4 -4 -3 -3 -3 -2 -2 -2 -2 -1 -1 -1 -1 --------- Run | Yrd Mat Min Mat Min Mat Gar Mat Gar Fac Gar Fac Gar Fac Gar Fac Gar Fac Ext Cet Arc Hub Gar Res Tes Gar Res Qua Sec Gar Acc Gar Acc Com Total 32877 | 50 661 679 1127 691 475 1027 532 899 1696 1127 1344 1226 1360 1245 1347 1533 1172 821 153 82 286 749 350 899 1568 543 1207 1298 1787 169 1222 223 3329 Wait 3063 | . 83 32 66 10 23 34 . 5 37 18 16 27 58 152 73 117 70 38 12 33 82 39 24 45 116 44 71 59 273 37 87 6 1276 Move 25296 | 45 533 615 913 644 336 846 419 775 1399 939 1007 1001 1131 899 1146 1193 910 649 100 38 169 626 292 705 1239 433 1013 1016 1345 111 996 166 1647 Hop . | . . . . . . . . . . . . . . . . . . . . . . . . . . . . . . . . . . Pick Up 411 | . 8 9 25 6 16 18 8 15 18 29 18 22 19 26 7 11 20 8 4 . 1 7 1 20 17 4 9 13 13 1 11 6 21 Fast Attach 269 | 5 2 1 7 2 4 . 15 4 21 8 31 3 13 3 2 3 15 6 4 . 3 7 6 18 12 . 13 34 10 . 4 2 11 Attach 207 | . 1 3 11 3 5 7 3 6 9 14 14 9 10 5 4 5 13 5 1 . . 2 2 5 4 4 5 9 8 4 3 1 32 Detach 76 | . . . 5 . 3 . 1 1 2 1 9 . 4 . . 2 7 4 2 . 1 1 1 4 . 1 3 12 2 1 . . 9 Swap 290 | . 3 1 5 3 9 10 11 10 19 13 37 18 17 10 7 8 12 5 4 1 3 11 3 9 16 . 6 10 14 . 3 1 11 Drop 443 | . 2 . 14 2 16 12 14 10 21 20 21 14 13 17 6 11 26 6 9 . 4 13 5 34 29 2 22 34 22 . 14 7 23 Fire 2435 | . 29 18 81 21 63 52 61 55 148 59 185 75 68 69 92 101 99 94 17 10 23 43 16 59 135 55 65 111 100 15 93 34 289 Melee 58 | . . . . . . . . 10 14 4 6 5 16 . . 3 . . . . . . . . . . . . . . . . . Ram . | . . . . . . . . . . . . . . . . . . . . . . . . . . . . . . . . . . Kick . | . . . . . . . . . . . . . . . . . . . . . . . . . . . . . . . . . . Crush . | . . . . . . . . . . . . . . . . . . . . . . . . . . . . . . . . . . Escape Stasis 271 | . . . . . . 33 . 8 8 . . 44 10 64 8 75 . . . . . . . . . . . . . . 11 . 10 Rewire 58 | . . . . . . 15 . . . 22 . 8 1 . 2 4 . 6 . . . . . . . . . . . . . . . Trap . | . . . . . . . . . . . . . . . . . . . . . . . . . . . . . . . . . . Miscellaneous . | . . . . . . . . . . . . . . . . . . . . . . . . . . . . . . . . . . Route ------- -11/Scrapyard -10/Materials (discovered 6 exits: *Mat x3 / *Min x2 / *Sub) -10/Mines (discovered 4 exits: *Mat x2 / Exi / Sub) -9/Materials (discovered 5 exits: *Mat x3 / *Min x2) -9/Mines (discovered 2 exits: *Mat x2) -8/Materials (discovered 2 exits: *Fac / Gar) -8/Garrison (discovered 3 exits: *Mat x3) -8/Materials (discovered 3 exits: *Fac x2 / Gar) -8/Garrison (discovered 3 exits: *Fac x3) -7/Factory (discovered 7 exits: *Fac x2 / Sto / *Low x2 / Gar / Gar) -7/Garrison (discovered 3 exits: *Fac x3) -6/Factory (discovered 7 exits: *Fac x3 / *Low x2 / Gar / Gar) -6/Garrison (discovered 3 exits: *Fac x3) -5/Factory (discovered 6 exits: *Fac x3 / *Upp x2 / Gar) -5/Garrison (discovered 3 exits: *Fac x3) -5/Factory (discovered 4 exits: *Fac x2 / Upp / Gar) -5/Garrison (discovered 3 exits: *Fac x3) -4/Factory (discovered 6 exits: *Res / Upp x2 / *Ext x2 / Arm) -4/Extension (discovered 3 exits: *Res x2 / *Cet) -4/Cetus (discovered 2 exits: Res / [*Arc]) -4/Archives -4/Hub_04(d) (discovered 2 exits: *Res / Gar) -4/Garrison (discovered 3 exits: *Res x3) -3/Research -3/Testing -3/Garrison (discovered 3 exits: *Res x3) -2/Research -2/Quarantine (discovered 3 exits: *Acc / *Sec / [*Frg]) -2/Section 7 (discovered 2 exits: *Acc / Gar) -2/Garrison (discovered 3 exits: *Acc x3) -1/Access -1/Garrison (discovered 3 exits: *Acc x3) -1/Access -1/Command (discovered 2 exits: Sur / Ac0) 0b10 Command History --------- Turn | Location | Event 10 | -11/Scrapyard | Discovered new exit (range 16) 48 | -11/Scrapyard | Entered Materials 131 | -10/Materials | Discovered new exit (range 15) 245 | -10/Materials | Discovered new exit (range 5) 315 | -10/Materials | Build established: Mutant 419 | -10/Materials | Discovered new exit (range 12) 449 | -10/Materials | Destroyed 7 combat bots 511 | -10/Materials | Discovered new exit (range 15) 581 | -10/Materials | Discovered new exit (range 13) 692 | -10/Materials | Discovered new exit (range 10) 716 | -10/Materials | Prayed at D.C.S.S. Altar Unit 739 | -10/Materials | Entered Mines 742 | -10/Mines | Assisted by bots powering up and referring to "LRC-V3" 788 | -10/Mines | Discovered new exit (range 4) 894 | -10/Mines | Discovered new exit (range 12) 899 | -10/Mines | Core integrity permanently improved by X0-1V1 (+200) 960 | -10/Mines | Learned 4 Materials zone layouts 1056 | -10/Mines | Learned location of Recycling (-7) 1091 | -10/Mines | Met a Derelict testing a Signal Generator 1095 | -10/Mines | Found Signal Generator 1141 | -10/Mines | Identified exit to Subcaves 1141 | -10/Mines | X0-1V1 revealed exit location to -10/Subcaves 1220 | -10/Mines | Learned 2 Materials zone layouts 1397 | -10/Mines | Identified exit to Exiles 1397 | -10/Mines | X0-1V1 revealed exit location to -10/Exiles 1413 | -10/Mines | Entered Materials 1413 | -9/Materials | Accompanied by 3 allies 1413 | -9/Materials | Evolved 2 slots: Utility x2 1414 | -9/Materials | Identified exit to Mines 1414 | -9/Materials | Identified exit to Materials 1910 | -9/Materials | Utility slot count permanently improved by X0-1V1 (+1) 1922 | -9/Materials | Discovered exit to Materials (range 7) 1967 | -9/Materials | X0-1V1 sent you into danger 2115 | -9/Materials | Weapon slot count temporarily expanded by X0-1V1 (+2) 2156 | -9/Materials | Discovered exit to Mines (range 16) 2439 | -9/Materials | X0-1V1 added 0b10 threat records associated with you (considerable) 2442 | -9/Materials | Discovered exit to Materials (range 8) 2451 | -9/Materials | X0-1V1 sent you to a vault 2501 | -9/Materials | X0-1V1 rewrote Trooper 2c IFF filter 2613 | -9/Materials | First assault squad dispatched 2887 | -9/Materials | Entered Mines 2888 | -9/Mines | Assembled infested the area 2893 | -9/Mines | Assisted by a Guerilla fighting off Assembled 2924 | -9/Mines | Destroyed 14 combat bots 2936 | -9/Mines | Lost 3 parts (2u1w) 2987 | -9/Mines | Met a Derelict who couldn't figure out how to use a Trap Extractor 2994 | -9/Mines | Inventory capacity permanently improved by X0-1V1 (+2; -200 max core) 3128 | -9/Mines | Learned Materials terminal intel 3137 | -9/Mines | Found DCF Scrap (11 items) 3268 | -9/Mines | Discovered exit to Materials (range 10) 3284 | -9/Mines | Build established: Hauler-Mutant 3324 | -9/Mines | Discovered exit to Materials (range 9) 3399 | -9/Mines | X0-1V1 activates XOMVISION 3520 | -9/Mines | Found the Drone Emporium 3524 | -9/Mines | Learned location of Storage (-7) 3528 | -9/Mines | Found Prototype Device 3713 | -9/Mines | Identified Thief Drone Bay 3881 | -9/Mines | X0-1V1 activates XOMVISION 3940 | -9/Mines | Entered Materials 3940 | -8/Materials | Evolved 2 slots: Propulsion x2 3941 | -8/Materials | Loaded intel: 12 terminal locations 3988 | -8/Materials | X0-1V1 foreshadows a heat wave 4145 | -8/Materials | X0-1V1 sent you to a vault 4204 | -8/Materials | Ambient heat levels rising (+10) 4292 | -8/Materials | Discovered new exit (range 6) 4298 | -8/Materials | Central database locked down 4395 | -8/Materials | Ambient heat levels rising (+10) 4553 | -8/Materials | Garrison activated, responded to threat 4580 | -8/Materials | Identified exit to Garrison 4582 | -8/Materials | Entered Garrison 4616 | -8/Garrison | Triggered checkpoint 4675 | -8/Garrison | X0-1V1 destroyed Phase Generator 4675 | -8/Garrison | Phase Generator disabled 4700 | -8/Garrison | Triggered checkpoint 4701 | -8/Garrison | Triggered checkpoint 4703 | -8/Garrison | X0-1V1 sent allied B-75 Beast (x1) 4732 | -8/Garrison | Triggered checkpoint 4807 | -8/Garrison | Discovered new exit (range 5) 4922 | -8/Garrison | X0-1V1 mutated your Propulsion slot to Weapon slot 4988 | -8/Garrison | Core integrity restored by X0-1V1 (+121) 5052 | -8/Garrison | Discovered new exit (range 22) 5052 | -8/Garrison | Discovered new exit (range 68) 5052 | -8/Garrison | Discovered new exit (range 35) 5152 | -8/Garrison | Triggered checkpoint 5267 | -8/Garrison | X0-1V1 rewrote 74-1GV(g) IFF filter 5318 | -8/Garrison | Build established: Hauler-Tank 5514 | -8/Garrison | Installed Relay Interface Framework 5542 | -8/Garrison | P-60 Hacker assimilated allied F2-LZF(h) 5652 | -8/Garrison | Triggered checkpoint 5667 | -8/Garrison | Learned Materials security intel 5691 | -8/Garrison | Garrison Relay disabled 5701 | -8/Garrison | X0-1V1 mutated your Weapon slot to Power slot 5773 | -8/Garrison | Expanded RIF knowledge: Threat Obfuscation 5803 | -8/Garrison | Crushed by falling debris 5804 | -8/Garrison | System corruption reached 10% 5905 | -8/Garrison | Garrison Relay disabled 5975 | -8/Garrison | Entered Materials 5975 | -8/Materials | Accompanied by 2 allies 5994 | -8/Materials | Central database locked down 6002 | -8/Materials | Build established: Bothacker-Mutant 6041 | -8/Materials | Core integrity restored by X0-1V1 (+88) 6156 | -8/Materials | Discovered new exit (range 15) 6369 | -8/Materials | X0-1V1 sent you to a vault 6399 | -8/Materials | Discovered new exit (range 7) 6501 | -8/Materials | Garrison activated, responded to threat 6552 | -8/Materials | X0-1V1 whisked you away to safety 6775 | -8/Materials | First assault squad dispatched 6790 | -8/Materials | Identified exit to Garrison 6790 | -8/Materials | Entered Garrison 6814 | -8/Garrison | Triggered checkpoint 6819 | -8/Garrison | Lost 4 parts (1p1n1u1w) 6819 | -8/Garrison | Lost 4 allies 6830 | -8/Garrison | X0-1V1 activates XOMVISION 6880 | -8/Garrison | Expanded RIF knowledge: Robot Detection 6964 | -8/Garrison | Triggered checkpoint 7013 | -8/Garrison | Garrison Relay disabled 7080 | -8/Garrison | Triggered checkpoint 7104 | -8/Garrison | Triggered checkpoint 7138 | -8/Garrison | Triggered checkpoint 7238 | -8/Garrison | Discovered new exit (range 14) 7466 | -8/Garrison | Core integrity restored by X0-1V1 (+93) 7479 | -8/Garrison | Discovered new exit (range 8) 7576 | -8/Garrison | Triggered checkpoint 7581 | -8/Garrison | Garrison Relay disabled 7713 | -8/Garrison | X0-1V1 destroyed Phase Generator 7713 | -8/Garrison | Phase Generator disabled 7724 | -8/Garrison | Triggered checkpoint 7727 | -8/Garrison | Discovered new exit (range 13) 7784 | -8/Garrison | X0-1V1 activates XOMVISION 7860 | -8/Garrison | X0-1V1 vaporized surrounding terrain (radius 16) 7866 | -8/Garrison | Triggered checkpoint 7870 | -8/Garrison | P-60 Hacker assimilated allied Trooper 3c 7906 | -8/Garrison | Lost 5 allies 7935 | -8/Garrison | Expanded RIF knowledge: Signal Jamming 8023 | -8/Garrison | Garrison Relay disabled 8096 | -8/Garrison | Entered Factory 8096 | -7/Factory | Accompanied by 1 ally 8096 | -7/Factory | Evolved 2 slots: Propulsion x1, Utility x1 8121 | -7/Factory | X0-1V1 activates XOMVISION 8174 | -7/Factory | X0-1V1 sent you into danger 8220 | -7/Factory | Discovered new exit (range 3) 8225 | -7/Factory | Build established: Botlord-Mutant 8614 | -7/Factory | Discovered new exit (range 7) 8831 | -7/Factory | P-60 Hacker assimilated allied Informer 4a 8863 | -7/Factory | X0-1V1 sent you to a vault 8881 | -7/Factory | Found Powered Armor 9289 | -7/Factory | X0-1V1 tapped a No Entrance sign 9298 | -7/Factory | X0-1V1 sent hostile S-27 Virus (x5) 9311 | -7/Factory | Garrison activated, responded to threat 9357 | -7/Factory | Destroyed 12 combat bots 9406 | -7/Factory | Lost 3 parts (1p1n1w) 9451 | -7/Factory | Identified exit to Garrison 9708 | -7/Factory | System corruption reached 10% 10048 | -7/Factory | Discovered new exit (range 7) 10071 | -7/Factory | Identified exit to Garrison 10160 | -7/Factory | X0-1V1 enhanced Transport squad support 10208 | -7/Factory | X0-1V1 mutated your Weapon slot to Propulsion slot 10218 | -7/Factory | Discovered new exit (range 15) 10279 | -7/Factory | X0-1V1 sent hostile G-47 Trooper (x5) 10322 | -7/Factory | Identified exit to Storage 10322 | -7/Factory | Identified exit to Lower Caves 10379 | -7/Factory | Entered Garrison 10379 | -7/Garrison | Accompanied by 2 allies 10413 | -7/Garrison | Triggered checkpoint 10419 | -7/Garrison | Garrison Relay disabled 10432 | -7/Garrison | Heavy support dispatched to Factory 10505 | -7/Garrison | X0-1V1 mutated your Propulsion slot to Weapon slot 10514 | -7/Garrison | Triggered checkpoint 10550 | -7/Garrison | Destroyed 13 combat bots 10564 | -7/Garrison | Lost 5 parts (1p2n2w) 10577 | -7/Garrison | Discovered new exit (range 50) 10577 | -7/Garrison | Discovered new exit (range 60) 10577 | -7/Garrison | Discovered new exit (range 26) 10619 | -7/Garrison | Triggered checkpoint 10718 | -7/Garrison | Core integrity fell below 50% 10756 | -7/Garrison | Lost 4 allies 10850 | -7/Garrison | Found embedded Infiltrators 10889 | -7/Garrison | Triggered checkpoint 11209 | -7/Garrison | Triggered checkpoint 11226 | -7/Garrison | Spotted B-75 Beast 11228 | -7/Garrison | Weapon slot count temporarily expanded by X0-1V1 (+1) 11245 | -7/Garrison | Destroyed B-75 Beast 11273 | -7/Garrison | Lost 3 parts (1u2w) 11287 | -7/Garrison | Expanded RIF knowledge: Autoassimilate 11305 | -7/Garrison | Garrison Relay disabled 11325 | -7/Garrison | X0-1V1 mutated your Weapon slot to Utility slot 11472 | -7/Garrison | Garrison Relay disabled 11565 | -7/Garrison | X0-1V1 activates XOMVISION 11595 | -7/Garrison | Expanded RIF knowledge: Structural Interface 11646 | -7/Garrison | Learned Factory security intel 11784 | -7/Garrison | Garrison Relay disabled 11867 | -7/Garrison | Heavy support dispatched to Factory 11907 | -7/Garrison | X0-1V1 rewrote Shotgunner 4b IFF filter 12038 | -7/Garrison | H-XX Assembler disabled 12065 | -7/Garrison | Entered Factory 12065 | -6/Factory | Accompanied by 3 allies 12065 | -6/Factory | Evolved 2 slots: Utility x2 12137 | -6/Factory | Identified exit to Garrison 12167 | -6/Factory | X0-1V1 rewrote S0-B6B(x) IFF filter 12357 | -6/Factory | X0-1V1 mutated your Utility slot to Propulsion slot 12426 | -6/Factory | Discovered new exit (range 6) 12443 | -6/Factory | Spotted B-75 Beast 12459 | -6/Factory | Allies destroyed B-75 Beast 12586 | -6/Factory | Lost 3 allies 12605 | -6/Factory | Cargo convoy interrupted 12649 | -6/Factory | Lost 3 allies 12678 | -6/Factory | Lost 10 parts (3p4n3u) 12765 | -6/Factory | First assault squad dispatched 12998 | -6/Factory | X0-1V1 mutated your Propulsion slot to Utility slot 13041 | -6/Factory | Core integrity restored by X0-1V1 (+136) 13086 | -6/Factory | Identified exit to Garrison 13120 | -6/Factory | Garrison activated, responded to threat 13254 | -6/Factory | X0-1V1 enhanced Transport squad support 13276 | -6/Factory | Central database locked down 13312 | -6/Factory | X0-1V1 sent you to a vault 13329 | -6/Factory | Found Prototype Slashing Weapon 13329 | -6/Factory | Identified Scimitar of Distortion 13337 | -6/Factory | X0-1V1 vaporized surrounding terrain (radius 23) 13423 | -6/Factory | Discovered new exit (range 6) 13474 | -6/Factory | Identified exit to Factory 13474 | -6/Factory | X0-1V1 revealed exit location to -5/Factory 13606 | -6/Factory | Identified exit to Garrison 13611 | -6/Factory | X0-1V1 redirected Transport squads to designated parking area 13684 | -6/Factory | Weapon slot count temporarily expanded by X0-1V1 (+4) 13689 | -6/Factory | X0-1V1 upgraded hostiles (x1) 13778 | -6/Factory | Identified exit to Lower Caves 13842 | -6/Factory | System corruption reached 10% 13845 | -6/Factory | X0-1V1 revealed exit location to -5/Factory 13919 | -6/Factory | Entered Garrison 13960 | -6/Garrison | Rescued a captive Derelict 13996 | -6/Garrison | Expanded RIF knowledge: Command Fork 14087 | -6/Garrison | Triggered checkpoint 14111 | -6/Garrison | Triggered checkpoint 14115 | -6/Garrison | Garrison Relay disabled 14233 | -6/Garrison | Spotted B-75 Beast 14235 | -6/Garrison | Triggered checkpoint 14255 | -6/Garrison | Allies destroyed B-75 Beast 14278 | -6/Garrison | Triggered checkpoint 14301 | -6/Garrison | Triggered checkpoint 14354 | -6/Garrison | Discovered exit to Factory (range 13) 14413 | -6/Garrison | Triggered checkpoint 14413 | -6/Garrison | X0-1V1 destroyed Phase Generator 14413 | -6/Garrison | Phase Generator disabled 14469 | -6/Garrison | Learned Factory security intel 14485 | -6/Garrison | Garrison Relay disabled 14515 | -6/Garrison | Triggered checkpoint 14531 | -6/Garrison | Triggered checkpoint 14561 | -6/Garrison | Triggered checkpoint 14565 | -6/Garrison | Weapon slot count temporarily expanded by X0-1V1 (+1) 14615 | -6/Garrison | Rewired Striker 14625 | -6/Garrison | Rewired Striker 14655 | -6/Garrison | X0-1V1 revealed exit location to -5/Factory 14773 | -6/Garrison | Triggered checkpoint 14981 | -6/Garrison | Triggered checkpoint 14998 | -6/Garrison | Garrison Relay disabled 15045 | -6/Garrison | Discovered exit to Factory (range 18) 15128 | -6/Garrison | X0-1V1 activates XOMVISION 15177 | -6/Garrison | Expanded RIF knowledge: Threat Obfuscation 15285 | -6/Garrison | Entered Factory 15285 | -5/Factory | Accompanied by 22 allies 15285 | -5/Factory | Evolved 2 slots: Utility x2 15779 | -5/Factory | X0-1V1 activates XOMVISION 15782 | -5/Factory | Discovered new exit (range 13) 15811 | -5/Factory | Lost 3 allies 15849 | -5/Factory | X0-1V1 sent you to a vault 15909 | -5/Factory | Sage 6d assimilated hostile G-67 Veteran 15970 | -5/Factory | X0-1V1 vaporized surrounding terrain (radius 17) 16033 | -5/Factory | Discovered new exit (range 13) 16042 | -5/Factory | X0-1V1 mutated your Utility slot to Weapon slot 16125 | -5/Factory | X0-1V1 redirected Transport squads to designated parking area 16157 | -5/Factory | Identified exit to Factory 16157 | -5/Factory | X0-1V1 revealed exit location to -4/Factory 16165 | -5/Factory | Sage 6d assimilated hostile W-25 Informer 16210 | -5/Factory | Identified exit to Upper Caves 16448 | -5/Factory | X0-1V1 activates XOMVISION 16473 | -5/Factory | Found Launcher Loader 16485 | -5/Factory | First assault squad dispatched 16519 | -5/Factory | Cargo convoy interrupted 16521 | -5/Factory | Sage 6a assimilated hostile H-66 Slayer 16521 | -5/Factory | Allies destroyed Striker 16523 | -5/Factory | Garrison activated, responded to threat 16556 | -5/Factory | Found PL-3XN's Ring of Power 16589 | -5/Factory | Lost 7 allies 16641 | -5/Factory | Identified exit to Garrison 16741 | -5/Factory | P-70 Sage assimilated allied Guardian 5c 16752 | -5/Factory | P-70 Sage assimilated allied Slayer 5c 16801 | -5/Factory | Lost 15 allies 16803 | -5/Factory | Entered Garrison 16803 | -5/Garrison | Accompanied by 20 allies 16819 | -5/Garrison | Triggered checkpoint 16841 | -5/Garrison | Expanded RIF knowledge: Watcher Feeds 16851 | -5/Garrison | Triggered checkpoint 16910 | -5/Garrison | Spotted B-75 Beast 16917 | -5/Garrison | Triggered checkpoint 16928 | -5/Garrison | Allies destroyed B-75 Beast 16945 | -5/Garrison | Triggered checkpoint 16947 | -5/Garrison | Triggered checkpoint 16955 | -5/Garrison | Triggered checkpoint 16959 | -5/Garrison | Lost 4 allies 16993 | -5/Garrison | Found embedded Infiltrators 17018 | -5/Garrison | Lost 3 allies 17025 | -5/Garrison | Triggered checkpoint 17046 | -5/Garrison | Garrison Relay disabled 17063 | -5/Garrison | Spotted B-75 Beast 17071 | -5/Garrison | Allies destroyed B-75 Beast 17169 | -5/Garrison | Discovered new exit (range 14) 17317 | -5/Garrison | X0-1V1 destroyed Phase Generator 17317 | -5/Garrison | Phase Generator disabled 17345 | -5/Garrison | Triggered checkpoint 17385 | -5/Garrison | Garrison Relay disabled 17450 | -5/Garrison | Discovered new exit (range 12) 17580 | -5/Garrison | P-70 Sage assimilated allied Slayer 6f 17625 | -5/Garrison | Lost 3 parts (1u2w) 17694 | -5/Garrison | Discovered new exit (range 10) 17723 | -5/Garrison | Garrison Relay disabled 17905 | -5/Garrison | X0-1V1 activates XOMVISION 18188 | -5/Garrison | Entered Factory 18188 | -5/Factory | Accompanied by 23 allies 18736 | -5/Factory | Lost 3 allies 18818 | -5/Factory | Spotted B-75 Beast 18834 | -5/Factory | Allies destroyed B-75 Beast 18895 | -5/Factory | Discovered exit to Factory (range 27) 19232 | -5/Factory | X0-1V1 activates XOMVISION 19254 | -5/Factory | Discovered exit to Factory (range 38) 19301 | -5/Factory | X0-1V1 revealed exit location to -5/Upper Caves 19316 | -5/Factory | Lost 10 allies 19319 | -5/Factory | Identified exit to Garrison 19667 | -5/Factory | Entered Garrison 19667 | -5/Garrison | Accompanied by 21 allies 19697 | -5/Garrison | Triggered checkpoint 19776 | -5/Garrison | Garrison Relay disabled 19788 | -5/Garrison | Triggered checkpoint 19793 | -5/Garrison | Spotted B-75 Beast 19818 | -5/Garrison | Allies destroyed B-75 Beast 19843 | -5/Garrison | Triggered checkpoint 19877 | -5/Garrison | Lost 7 allies 19919 | -5/Garrison | Expanded RIF knowledge: Code Merge 19934 | -5/Garrison | Watched by a mysterious "MATRIX" hacker 19946 | -5/Garrison | Discovered exit to Factory (range 10) 19949 | -5/Garrison | Triggered checkpoint 19962 | -5/Garrison | P-70 Sage assimilated hostile B-60 Warrior 19999 | -5/Garrison | Triggered checkpoint 20007 | -5/Garrison | Garrison Relay disabled 20179 | -5/Garrison | Triggered checkpoint 20202 | -5/Garrison | Garrison Relay disabled 20286 | -5/Garrison | Discovered exit to Factory (range 10) 20311 | -5/Garrison | Triggered checkpoint 20326 | -5/Garrison | Garrison Relay disabled 20364 | -5/Garrison | Learned Factory security intel 20475 | -5/Garrison | Discovered exit to Factory (range 11) 20485 | -5/Garrison | Triggered checkpoint 20500 | -5/Garrison | Core integrity restored by X0-1V1 (+160) 20505 | -5/Garrison | Triggered checkpoint 20511 | -5/Garrison | Triggered checkpoint 20551 | -5/Garrison | Lost 5 allies 20569 | -5/Garrison | Garrison Relay disabled 20635 | -5/Garrison | Spotted B-86 Titan 20639 | -5/Garrison | Rewired B-75 Beast 20646 | -5/Garrison | Allies destroyed B-86 Titan 20708 | -5/Garrison | Garrison Relay disabled 20864 | -5/Garrison | Spotted B-75 Beast 20884 | -5/Garrison | Allies destroyed B-75 Beast 20919 | -5/Garrison | Lost 5 allies 21491 | -5/Garrison | Build established: Commander-Mutant 21582 | -5/Garrison | Entered Factory 21582 | -4/Factory | Accompanied by 31 allies 21582 | -4/Factory | Evolved 2 slots: Utility x2 21614 | -4/Factory | Found Prototype Processor 21614 | -4/Factory | Identified Exp. Signal Interpreter 21682 | -4/Factory | Fabricated Transport Network Coupler (x2) 21752 | -4/Factory | Found Exp. Armor Integrity Analyzer 21755 | -4/Factory | Lost 8 allies 21911 | -4/Factory | Lost 3 allies 21988 | -4/Factory | Discovered new exit (range 21) 22005 | -4/Factory | Build established: Botlord-Mutant 22048 | -4/Factory | Lost 12 allies 22062 | -4/Factory | Discovered new exit (range 36) 22082 | -4/Factory | First assault squad dispatched 22271 | -4/Factory | Lost 11 allies 22275 | -4/Factory | Identified exit to Upper Caves 22275 | -4/Factory | Identified exit to Extension 22275 | -4/Factory | Identified exit to Armory 22684 | -4/Factory | Spotted Striker 22685 | -4/Factory | Cargo convoy interrupted 22691 | -4/Factory | P-70 Sage assimilated allied X-82 Rainmaker 22722 | -4/Factory | Lost 6 allies 22726 | -4/Factory | Found Prototype Protection 22726 | -4/Factory | Identified Centrium Heavy Armor Plating 22733 | -4/Factory | Found Prototype Device 22733 | -4/Factory | Identified Exp. Focal Shield 22734 | -4/Factory | Allies destroyed Striker 22735 | -4/Factory | Lost 5 parts (2p1n1u1w) 22780 | -4/Factory | Found Centrium Heavy Armor Plating 22993 | -4/Factory | Entered Extension 22993 | -4/Extension | Accompanied by 4 allies 22999 | -4/Extension | X0-1V1 dreamt of freedom 23022 | -4/Extension | Rescued a captive Derelict 23032 | -4/Extension | Rescued a captive Derelict 23440 | -4/Extension | Identified exit to Cetus 23440 | -4/Extension | X0-1V1 revealed exit location to -4/Cetus 23469 | -4/Extension | X0-1V1 sent you into danger 23506 | -4/Extension | X0-1V1 activates XOMVISION 23647 | -4/Extension | Spotted B-86 Titan 23671 | -4/Extension | Allies destroyed B-86 Titan 23684 | -4/Extension | Spotted B-86 Titan 23700 | -4/Extension | Allies destroyed B-86 Titan 23736 | -4/Extension | Discovered new exit (range 15) 23737 | -4/Extension | Lost 11 allies 23765 | -4/Extension | Extracted ID and sensor layout for unrecognized location from A7's data core 23988 | -4/Extension | X0-1V1 added 0b10 threat records associated with you (major) 24209 | -4/Extension | Discovered new exit (range 10) 24275 | -4/Extension | X0-1V1 mutated your Weapon slot to Utility slot 24284 | -4/Extension | Entered Cetus 24284 | -4/Cetus | Accompanied by 18 allies 24307 | -4/Cetus | Spotted Cetus Guard 24307 | -4/Cetus | Spotted Cetus Guard 24309 | -4/Cetus | Spotted Cetus Guard 24314 | -4/Cetus | Spotted Cetus Guard 24326 | -4/Cetus | Allies destroyed Cetus Guard 24329 | -4/Cetus | Allies destroyed Cetus Guard 24333 | -4/Cetus | Allies destroyed Cetus Guard 24336 | -4/Cetus | Allies destroyed Cetus Guard 24361 | -4/Cetus | Lost 4 allies 24449 | -4/Cetus | Adv. Heavy Siege Treads reconfigured into Item Mimic 24467 | -4/Cetus | Identified exit to Research 24467 | -4/Cetus | X0-1V1 revealed exit location to -3/Research 24471 | -4/Cetus | Discovered new exit (range 15) 24492 | -4/Cetus | Lost 3 allies 24514 | -4/Cetus | Entered Archives 24514 | -4/Archives | Accompanied by 11 allies 24579 | -4/Archives | Discovered new exit (range 16) 24630 | -4/Archives | Entered Hub_04(d) 24630 | -4/Hub_04(d) | Accompanied by 12 allies 24729 | -4/Hub_04(d) | Spotted B-86 Titan 24751 | -4/Hub_04(d) | Allies destroyed B-86 Titan 24799 | -4/Hub_04(d) | Discovered exit to Research (range 6) 24845 | -4/Hub_04(d) | Identified exit to Garrison 24901 | -4/Hub_04(d) | X0-1V1 rewrote Sentinel 7f IFF filter 25037 | -4/Hub_04(d) | Entered Garrison 25037 | -4/Garrison | Accompanied by 12 allies 25059 | -4/Garrison | Triggered checkpoint 25089 | -4/Garrison | Expanded RIF knowledge: Command Fork 25155 | -4/Garrison | Triggered checkpoint 25202 | -4/Garrison | Spotted B-86 Titan 25207 | -4/Garrison | Triggered checkpoint 25219 | -4/Garrison | Allies destroyed B-86 Titan 25267 | -4/Garrison | Lost 4 allies 25290 | -4/Garrison | Found embedded Infiltrators 25307 | -4/Garrison | Garrison Relay disabled 25379 | -4/Garrison | Triggered checkpoint 25491 | -4/Garrison | Garrison Relay disabled 25517 | -4/Garrison | Triggered checkpoint 25533 | -4/Garrison | Garrison Relay disabled 25561 | -4/Garrison | Discovered exit to Research (range 10) 25663 | -4/Garrison | Triggered checkpoint 25699 | -4/Garrison | Garrison Relay disabled 25739 | -4/Garrison | Discovered exit to Research (range 15) 25765 | -4/Garrison | Spotted Striker 25773 | -4/Garrison | Rewired Executioner 25782 | -4/Garrison | Allies destroyed Striker 25787 | -4/Garrison | Rewired Executioner 25903 | -4/Garrison | X0-1V1 revealed exit location to -3/Research 25905 | -4/Garrison | Rescued a captive Derelict 26040 | -4/Garrison | Discovered exit to Research (range 17) 26040 | -4/Garrison | Discovered exit to Research (range 61) 26040 | -4/Garrison | Discovered exit to Research (range 84) 26053 | -4/Garrison | X0-1V1 sent you into danger 26109 | -4/Garrison | Garrison Relay disabled 26207 | -4/Garrison | Entered Research 26207 | -3/Research | Accompanied by 13 allies 26207 | -3/Research | Evolved 2 slots: Utility x1, Weapon x1 26510 | -3/Research | Found Prototype Device 26510 | -3/Research | Identified Adv. Kinecellerator 26590 | -3/Research | X0-1V1 redirected Transport squads to designated parking area 26754 | -3/Research | Discovered new exit (range 5) 26765 | -3/Research | Identified exit to Testing 26832 | -3/Research | X0-1V1 rewrote Veteran 8a IFF filter 26833 | -3/Research | Entered Testing 26833 | -3/Testing | Accompanied by 15 allies 26848 | -3/Testing | Found Prototype Energy Cannon 26852 | -3/Testing | Identified Null Cannon 26895 | -3/Testing | Found Prototype Device 26895 | -3/Testing | Identified Exp. Thermal Defense Suite 26903 | -3/Testing | Found Exp. Thermal Defense Suite 27149 | -3/Testing | Spotted Striker 27168 | -3/Testing | X0-1V1 mutated your Utility slot to Propulsion slot 27198 | -3/Testing | Allies destroyed Striker 27216 | -3/Testing | Allies destroyed Alpha 7 27240 | -3/Testing | Lost 4 allies 27253 | -3/Testing | Found Corrupted Prototype Processor 27255 | -3/Testing | Identified Exp. Targeting Computer 27311 | -3/Testing | P-80 Master assimilated allied Excavator 8a 27338 | -3/Testing | Lost 3 allies 27408 | -3/Testing | Found Prototype Energy Gun 27409 | -3/Testing | Identified Hyp. EM Gauss Rifle 27528 | -3/Testing | Found Prototype Energy Cannon 27532 | -3/Testing | Found Prototype Energy Cannon 27540 | -3/Testing | Identified Imp. Potential Cannon (x2) 27852 | -3/Testing | Lost 3 allies 27906 | -3/Testing | X0-1V1 mutated your Utility slot to Propulsion slot 27908 | -3/Testing | Biometal Heavy Treads reconfigured into Item Mimic 28170 | -3/Testing | Identified exit to Garrison 28226 | -3/Testing | Entered Garrison 28226 | -3/Garrison | Accompanied by 8 allies 28252 | -3/Garrison | H-XX Assembler disabled 28256 | -3/Garrison | P-80 Master assimilated allied Assassin 8d 28430 | -3/Garrison | Triggered checkpoint 28437 | -3/Garrison | P-80 Master assimilated hostile H-77 Assassin 28450 | -3/Garrison | Triggered checkpoint 28497 | -3/Garrison | Lost 5 allies 28534 | -3/Garrison | Triggered checkpoint 28558 | -3/Garrison | Discovered new exit (range 21) 28636 | -3/Garrison | Garrison Relay disabled 28658 | -3/Garrison | Triggered checkpoint 28836 | -3/Garrison | Triggered checkpoint 28836 | -3/Garrison | Spotted Striker 28869 | -3/Garrison | Allies destroyed Striker 28895 | -3/Garrison | Lost 3 allies 28895 | -3/Garrison | Discovered new exit (range 12) 28896 | -3/Garrison | Triggered checkpoint 28928 | -3/Garrison | Triggered checkpoint 28946 | -3/Garrison | Garrison Relay disabled 28969 | -3/Garrison | Lost 3 allies 29123 | -3/Garrison | X0-1V1 vaporized surrounding terrain (radius 16) 29123 | -3/Garrison | Triggered checkpoint 29126 | -3/Garrison | Garrison Relay disabled 29161 | -3/Garrison | Expanded RIF knowledge: Zone Cloak 29262 | -3/Garrison | Discovered new exit (range 10) 29271 | -3/Garrison | X0-1V1 activates XOMVISION 29364 | -3/Garrison | X0-1V1 vaporized surrounding terrain (radius 16) 29393 | -3/Garrison | Garrison Relay disabled 29604 | -3/Garrison | Triggered checkpoint 29692 | -3/Garrison | Garrison Relay disabled 30028 | -3/Garrison | Spotted B-86 Titan 30045 | -3/Garrison | Allies destroyed B-86 Titan 30082 | -3/Garrison | Found Relay Coupler [Proto] 30084 | -3/Garrison | Found Relay Coupler [Proto] 30087 | -3/Garrison | Found Relay Coupler [Proto] 30090 | -3/Garrison | Found Relay Coupler [Proto] 30128 | -3/Garrison | X0-1V1 activates XOMVISION 30132 | -3/Garrison | Rewired Executioner 30137 | -3/Garrison | Rewired Executioner 30451 | -3/Garrison | Entered Research 30451 | -2/Research | Accompanied by 21 allies 30451 | -2/Research | Evolved 2 slots: Utility x1, Weapon x1 30583 | -2/Research | Spotted B-90 Cyclops 30589 | -2/Research | Assimilated Cyclops 9a with formatsys_high 30782 | -2/Research | Spotted B-90 Cyclops 30785 | -2/Research | Assimilated Cyclops 9b with formatsys_high 30786 | -2/Research | Build established: Botlord-Tank 30951 | -2/Research | First assault squad dispatched 30964 | -2/Research | Found Exp. Core Analyzer 31087 | -2/Research | X0-1V1 sent you into danger 31114 | -2/Research | Discovered new exit (range 5) 31126 | -2/Research | Lost 3 allies 31131 | -2/Research | System corruption reached 10% 31147 | -2/Research | X0-1V1 redirected Transport squads to designated parking area 31216 | -2/Research | Entered Quarantine 31216 | -2/Quarantine | Accompanied by 16 allies 31259 | -2/Quarantine | Lost 4 allies 31311 | -2/Quarantine | Found Alien Artifact 31311 | -2/Quarantine | Identified Terrabomb 31311 | -2/Quarantine | Used Terrabomb 31404 | -2/Quarantine | Lost 4 allies 31425 | -2/Quarantine | Found Alien Energy Cannon 31425 | -2/Quarantine | Identified Core Cannon 31452 | -2/Quarantine | Discovered new exit (range 5) 31552 | -2/Quarantine | Lost 4 allies 31700 | -2/Quarantine | Found Alien Artifact 31700 | -2/Quarantine | Identified Phase Redirector 31801 | -2/Quarantine | Central database locked down 31907 | -2/Quarantine | X0-1V1 rewrote Electro 9d IFF filter 31952 | -2/Quarantine | P-80 Master assimilated allied Conveyor 9a 32024 | -2/Quarantine | Met incapacitated Sigix Warrior 32024 | -2/Quarantine | Lockdown squad dispatched 32027 | -2/Quarantine | Acquired the access code to the Sigix quarantine chamber 32034 | -2/Quarantine | Found Sigix Containment Pod 32097 | -2/Quarantine | Spotted Lightning 32107 | -2/Quarantine | Spotted Lightning 32108 | -2/Quarantine | Assimilated Lightning with formatsys_high 32109 | -2/Quarantine | Spotted Lightning 32112 | -2/Quarantine | Assimilated Lightning with formatsys_high 32127 | -2/Quarantine | Destroyed Lightning 32151 | -2/Quarantine | Lost 4 allies 32418 | -2/Quarantine | Found Alien Artifact 32676 | -2/Quarantine | Spotted Fortress 32680 | -2/Quarantine | Assimilated Fortress with formatsys_high 32791 | -2/Quarantine | X0-1V1 activates XOMVISION 32869 | -2/Quarantine | Discovered new exit (range 6) 32869 | -2/Quarantine | Discovered new exit (range 6) 32893 | -2/Quarantine | Entered Section 7 32893 | -2/Section 7 | Accompanied by 6 allies 32910 | -2/Section 7 | Found Alien Artifact 32910 | -2/Section 7 | Identified Spacefold Activator 33118 | -2/Section 7 | Found Alien Artifact 33118 | -2/Section 7 | Identified Integrated Mediator 33118 | -2/Section 7 | Installed Integrated Mediator, increased core attachment efficiency 33134 | -2/Section 7 | Spotted S7 Guard 33159 | -2/Section 7 | Spotted B-90 Cyclops 33165 | -2/Section 7 | Allies destroyed S7 Guard 33175 | -2/Section 7 | Assimilated Cyclops 9c with formatsys_high 33203 | -2/Section 7 | Found Alien Artifact 33203 | -2/Section 7 | Identified Core Membrane 33203 | -2/Section 7 | Installed Core Membrane, gained immunity to corruption 33251 | -2/Section 7 | Found Alien Artifact 33251 | -2/Section 7 | Identified Integrated Dissipator 33251 | -2/Section 7 | Installed Integrated Dissipator, increased core heat dissipation (+20) 33276 | -2/Section 7 | Found Alien Artifact 33276 | -2/Section 7 | Identified Integrated Reactor 33276 | -2/Section 7 | Installed Integrated Reactor, increased core energy generation (+10) 33393 | -2/Section 7 | First assault squad dispatched 33413 | -2/Section 7 | X0-1V1 activates XOMVISION 33563 | -2/Section 7 | Spotted S7 Guard 33669 | -2/Section 7 | Spotted S7 Guard 33684 | -2/Section 7 | Destroyed S7 Guard 33688 | -2/Section 7 | Found Alien Artifact 33688 | -2/Section 7 | Identified Integrated Thermoelectric Network 33688 | -2/Section 7 | Installed Integrated Thermoelectric Network, gained heat-energy exchange potential 33801 | -2/Section 7 | Discovered new exit (range 16) 33877 | -2/Section 7 | Garrison activated, responded to threat 33954 | -2/Section 7 | Lost 9 allies 33980 | -2/Section 7 | Spotted S7 Guard 33990 | -2/Section 7 | Destroyed Alpha 7 33993 | -2/Section 7 | Destroyed Alpha 7 33996 | -2/Section 7 | Allies destroyed S7 Guard 34018 | -2/Section 7 | Found Alien Artifact 34077 | -2/Section 7 | Spotted B-99 Colossus 34086 | -2/Section 7 | Assimilated Colossus 9a with formatsys_high 34147 | -2/Section 7 | Found Integrated Reactor 34147 | -2/Section 7 | Installed Integrated Reactor, increased core energy generation (+10) 34150 | -2/Section 7 | Found Integrated Reactor 34150 | -2/Section 7 | Installed Integrated Reactor, increased core energy generation (+10) 34153 | -2/Section 7 | Found Integrated Reactor 34153 | -2/Section 7 | Installed Integrated Reactor, increased core energy generation (+10) 34163 | -2/Section 7 | Garrison activated, responded to threat 34206 | -2/Section 7 | Found Alien Artifact 34206 | -2/Section 7 | Identified LRC Storage 34206 | -2/Section 7 | Installed LRC Storage, increased inventory capacity (+2) 34272 | -2/Section 7 | Found Alien Artifact 34395 | -2/Section 7 | Spotted Executioner 34395 | -2/Section 7 | Spotted Executioner 34421 | -2/Section 7 | X0-1V1 sent you to a vault 34427 | -2/Section 7 | Found Prototype Special Weapon 34427 | -2/Section 7 | Identified Exp. Remote Datajack 34434 | -2/Section 7 | Found Prototype Device 34434 | -2/Section 7 | Identified Adv. Particle Accelerator 34443 | -2/Section 7 | Found Prototype Device 34443 | -2/Section 7 | Identified Thermal Barrier 34455 | -2/Section 7 | Found Prototype Ballistic Gun 34455 | -2/Section 7 | Identified Multirail 34502 | -2/Section 7 | Found Prototype Device 34502 | -2/Section 7 | Identified Exp. Shock Absorption System 34647 | -2/Section 7 | Found Prototype Processor 34647 | -2/Section 7 | Identified Spectral Analyzer 34655 | -2/Section 7 | Found Spectral Analyzer 34664 | -2/Section 7 | Found Centrium Heavy Armor Plating 34666 | -2/Section 7 | Found Centrium Heavy Armor Plating 34681 | -2/Section 7 | Identified exit to Garrison 34683 | -2/Section 7 | Entered Garrison 34683 | -2/Garrison | Accompanied by 1 ally 34700 | -2/Garrison | X0-1V1 activates XOMVISION 34752 | -2/Garrison | Triggered checkpoint 34909 | -2/Garrison | Expanded RIF knowledge: Autoassimilate 34959 | -2/Garrison | Garrison Relay disabled 35012 | -2/Garrison | Triggered checkpoint 35018 | -2/Garrison | Spotted B-90 Cyclops 35022 | -2/Garrison | Triggered checkpoint 35028 | -2/Garrison | Triggered checkpoint 35039 | -2/Garrison | Assimilated Cyclops 9d with formatsys_high 35051 | -2/Garrison | Lost 5 allies 35103 | -2/Garrison | Triggered checkpoint 35103 | -2/Garrison | P-80 Master assimilated allied Enforcer 9o 35227 | -2/Garrison | Spotted B-90 Cyclops 35228 | -2/Garrison | Autoassimilated Cyclops 9e with RIF 35228 | -2/Garrison | Spotted B-90 Cyclops 35229 | -2/Garrison | Assimilated Cyclops 9f with formatsys_high 35287 | -2/Garrison | Discovered new exit (range 7) 35299 | -2/Garrison | Identified exit to Access 35299 | -2/Garrison | X0-1V1 revealed exit location to -1/Access 35306 | -2/Garrison | Discovered exit to Access (range 50) 35306 | -2/Garrison | Discovered exit to Access (range 8) 35306 | -2/Garrison | Discovered exit to Access (range 61) 35465 | -2/Garrison | Lost 3 allies 35477 | -2/Garrison | Triggered checkpoint 35481 | -2/Garrison | Triggered checkpoint 35529 | -2/Garrison | Expanded RIF knowledge: Crosswire 35752 | -2/Garrison | Found Adv. Powered Armor 35853 | -2/Garrison | Garrison Relay disabled 35909 | -2/Garrison | Garrison Relay disabled 35915 | -2/Garrison | Triggered checkpoint 36128 | -2/Garrison | Garrison Relay disabled 36210 | -2/Garrison | X0-1V1 vaporized surrounding terrain (radius 23) 36415 | -2/Garrison | Triggered checkpoint 36566 | -2/Garrison | Garrison Relay disabled 36605 | -2/Garrison | Spotted B-90 Cyclops 36612 | -2/Garrison | Assimilated Cyclops 9g with formatsys_high 36615 | -2/Garrison | Found Relay Coupler [Proto] 36617 | -2/Garrison | Found Relay Coupler [Proto] 36787 | -2/Garrison | Identified Core Physics Calibrator 36876 | -2/Garrison | Core integrity restored by X0-1V1 (+246) 37138 | -2/Garrison | Entered Access 37138 | -1/Access | Accompanied by 5 allies 37138 | -1/Access | Evolved 2 slots (calibrated): -Propulsion x2, Utility x3, Weapon x1 37362 | -1/Access | Identified exit to Garrison 37388 | -1/Access | First assault squad dispatched 37451 | -1/Access | X0-1V1 sent someone to fix up the mess you leave 37455 | -1/Access | Entered Garrison 37455 | -1/Garrison | Accompanied by 11 allies 37543 | -1/Garrison | Triggered checkpoint 37571 | -1/Garrison | Garrison Relay disabled 37643 | -1/Garrison | X0-1V1 activates XOMVISION 37794 | -1/Garrison | Triggered checkpoint 37799 | -1/Garrison | Spotted B-99 Colossus 37808 | -1/Garrison | Triggered checkpoint 37810 | -1/Garrison | Assimilated Colossus 10a with formatsys_high 37861 | -1/Garrison | Lost 11 allies 38021 | -1/Garrison | Triggered checkpoint 38041 | -1/Garrison | Spotted B-75 Beast 38043 | -1/Garrison | Spotted B-90 Cyclops 38044 | -1/Garrison | Autoassimilated Cyclops 10a with RIF 38046 | -1/Garrison | Assimilated Beast 10a with formatsys_high 38055 | -1/Garrison | Rewired B-86 Titan 38065 | -1/Garrison | Rewired B-75 Beast 38231 | -1/Garrison | Triggered checkpoint 38231 | -1/Garrison | Garrison Relay disabled 38505 | -1/Garrison | Found Relay Coupler [Proto] 38509 | -1/Garrison | Found Relay Coupler [Proto] 38573 | -1/Garrison | Discovered new exit (range 10) 38606 | -1/Garrison | Garrison Relay disabled 38689 | -1/Garrison | Identified exit to Access 38689 | -1/Garrison | X0-1V1 revealed exit location to -1/Access 38749 | -1/Garrison | Triggered checkpoint 38815 | -1/Garrison | Garrison Relay disabled 39017 | -1/Garrison | Expanded RIF knowledge: Command Fork 39033 | -1/Garrison | Discovered exit to Access (range 12) 39119 | -1/Garrison | Triggered checkpoint 39139 | -1/Garrison | Found embedded Infiltrators 39152 | -1/Garrison | Garrison Relay disabled 39257 | -1/Garrison | X0-1V1 opened Sealed Heavy Doors 39268 | -1/Garrison | Rescued a captive Derelict 40005 | -1/Garrison | Entered Access 40005 | -1/Access | Accompanied by 20 allies 40071 | -1/Access | X0-1V1 released a cloud of subatomizers 40082 | -1/Access | High security lockdown imminent 40162 | -1/Access | High security lockdown engaged 40216 | -1/Access | Lost 5 allies 40288 | -1/Access | Allies destroyed Colossus 10a 40319 | -1/Access | Lost 11 allies 40363 | -1/Access | Spotted B-99 Colossus 40366 | -1/Access | Spotted B-99 Colossus 40383 | -1/Access | Discovered new exit (range 3) 40414 | -1/Access | P-80 Master assimilated allied Conveyor 10b 40432 | -1/Access | Lost 3 allies 40432 | -1/Access | Found Multirail 40455 | -1/Access | Allies destroyed Cyclops 9g 40459 | -1/Access | Entered Command 40459 | -1/Command | Accompanied by 7 allies 40709 | -1/Command | First assault squad dispatched 40729 | -1/Command | X0-1V1 tapped a No Entrance sign 41143 | -1/Command | X0-1V1 activates XOMVISION 41825 | -1/Command | High security lockdown imminent 41905 | -1/Command | High security lockdown engaged 42014 | -1/Command | Destroyed Executioner 42034 | -1/Command | Autoassimilated Executioner with RIF 42043 | -1/Command | Destroyed Striker 42075 | -1/Command | Lost 3 allies 42100 | -1/Command | Destroyed 10 combat bots 42113 | -1/Command | Spotted Investigator 42126 | -1/Command | Allies destroyed Investigator 42219 | -1/Command | Lost 6 allies 42221 | -1/Command | Destroyed 15 combat bots 42228 | -1/Command | X0-1V1 activates XOMVISION 42251 | -1/Command | Found Prototype Launcher 42251 | -1/Command | Identified Containment Facilitator 42267 | -1/Command | X0-1V1 downgraded hostiles (x2) 42314 | -1/Command | Spotted Striker 42317 | -1/Command | Spotted Executioner 42318 | -1/Command | Destroyed Executioner 42318 | -1/Command | Destroyed Striker 42318 | -1/Command | Spotted Executioner 42322 | -1/Command | Destroyed Executioner 42322 | -1/Command | Destroyed Executioner 42323 | -1/Command | Spotted Striker 42326 | -1/Command | Autoassimilated Striker with RIF 42326 | -1/Command | Destroyed Striker 42334 | -1/Command | Destroyed Striker 42353 | -1/Command | Build established: Botlord-Gunner 42355 | -1/Command | Destroyed 14 combat bots 42507 | -1/Command | Identified Subatomic Replicator 42516 | -1/Command | Spotted Executioner 42516 | -1/Command | Spotted Striker 42520 | -1/Command | Destroyed Striker 42522 | -1/Command | Destroyed Executioner 42524 | -1/Command | Spotted Executioner 42528 | -1/Command | Spotted Striker 42528 | -1/Command | Spotted Striker 42528 | -1/Command | Spotted Executioner 42531 | -1/Command | Destroyed Executioner 42533 | -1/Command | Autoassimilated Executioner with RIF 42534 | -1/Command | Autoassimilated Striker with RIF 42544 | -1/Command | Destroyed Striker 42550 | -1/Command | Allies destroyed Striker 42560 | -1/Command | Allies destroyed Executioner 42575 | -1/Command | Destroyed 20 combat bots 42575 | -1/Command | Lost 3 allies 42662 | -1/Command | X0-1V1 vaporized surrounding terrain (radius 16) 42747 | -1/Command | Spotted Investigator 42750 | -1/Command | Spotted Striker 42756 | -1/Command | Destroyed Investigator 42765 | -1/Command | Destroyed Striker 42783 | -1/Command | Lost 4 allies 42790 | -1/Command | Destroyed 21 combat bots 42832 | -1/Command | Found Launcher Loader 42995 | -1/Command | X0-1V1 activates XOMVISION 43648 | -1/Command | X0-1V1 activates XOMVISION 44105 | -1/Command | Core integrity restored by X0-1V1 (+336) 44280 | -1/Command | Identified exit to Access_0 44280 | -1/Command | X0-1V1 revealed exit location to -1/Access_0 44355 | -1/Command | Lost 7 allies 44365 | -1/Command | Lost 5 parts (1n2u2w) 44373 | -1/Command | Destroyed 45 combat bots 44792 | -1/Command | X0-1V1 activates XOMVISION 44861 | -1/Command | X0-1V1 sent hostile H-88 Terminator (x2) 44949 | -1/Command | X0-1V1 mutated your Propulsion slot to Utility slot 45197 | -1/Command | Spotted M Guard 45201 | -1/Command | Spotted M Guard 45204 | -1/Command | Spotted Combat Programmer 45204 | -1/Command | Spotted Combat Programmer 45221 | -1/Command | Destroyed Combat Programmer 45250 | -1/Command | Destroyed Combat Programmer 45267 | -1/Command | Assimilated M Guard with formatsys_high 45267 | -1/Command | Assimilated M Guard with formatsys_high 46530 | -1/Command | Spotted B-99 Colossus 46875 | -1/Command | Met MAIN.C 46924 | -1/Command | X0-1V1 activates XOMVISION 46928 | -1/Command | Identified exit to Surface 46928 | -1/Command | X0-1V1 revealed exit location to -0/Surface 46934 | -1/Command | Core integrity restored by X0-1V1 (+400) 46966 | -1/Command | Allies destroyed MAIN.C Shell 46966 | -1/Command | MAIN.C activated Command garrisons 46986 | -1/Command | Found Corrupted Prototype Energy Cannon 46986 | -1/Command | Identified Cld. Nova Cannon 46996 | -1/Command | Lost 3 allies 47002 | -1/Command | Found Cld. Nova Cannon 47012 | -1/Command | All MAIN.C guards destroyed 47018 | -1/Command | X0-1V1 sent allied G-73 Enforcer (x2) 47066 | -1/Command | Released all parts (16) 47075 | -1/Command | Core integrity fell below 50% 47081 | -1/Command | Interfaced with 0b10 Conduit 47081 | *** | Assimilated 0b10! Last Messages --------------- 47066_ Released Relay Coupler [Heavy]. 47066_ Released Relay Coupler [Proto]. 47067_ Core Membrane filtered system corruption (1). 47067_ Acquired 38 matter. 47069_ Penetrated by Slug. 47069_ Spacefold Activator severed. 47069_ S-43 Plague destroyed. 47071_ X0-1V1 uses you as a vessel of destruction. 47071_ C-57 Dissector destroyed. 47072_ Penetrated by Slug. 47073_ P-80 Master resets C-57 Dissector, system corruption cleaned. 47074_ Knocked back. 47075_ Slug penetrates Reinforced Barrier. 47077_ Knocked back. 47081_ Interfacing with system... 47081_ Overriding active MAIN.C lock. [Achievement: Chaotic Teddy Bear] Map ----- +----------------------------------------------------+ | ?????????????????????????????????????????????????? | | ?????????????????????????????????????????????????? | | ?????????????????????????????????????????????????? | | ?????????????????????????????????????????????????? | | ?????????????????????????????????????????????????? | | ?????????????????????????????????????????????????? | | ?????????????????????????????????????????????????? | | ?????????????????????????????????????????????????? | | ## # ######################################### | | ## # ######################################### | | + + ######################################### | | # ############################################## | | ## # ######################################### | | # ######################################### | | # #####""""""" """" ############### | | # #####"" "" ############### | | # #####""""" "" ############### | | # #####""""""""""" | | + #####" " """ ; | | # #####"" """""" ; | | # #####"" """""" ############### | | #+#+########## " """""" ############### | | # ####### " "" c ############### | | # ####### " " ""############### | | # #######""""""""" """""""############### | | # #######"" @"""""""""############### | | # ####### """""""""""############### | | # ####### " " " " ############### | | ############## " " " " ############### | | """ " " " """" " ############### | | """ """ " " """" ############### | | """ " " " " ############### | | ##### """""""""" " ############### | | ##### " """ " """"""""############### | | ##### """ " " " ############### | | ######################################### | | ######################################### | | ######################################### | | ######################################### | | ""####################################### | | ""####################################### | | T"####################################### | | ""####################################### | | ?????????????????????????????????????????????????? | | ?????????????????????????????????????????????????? | | ?????????????????????????????????????????????????? | | ?????????????????????????????????????????????????? | | ?????????????????????????????????????????????????? | | ?????????????????????????????????????????????????? | | ?????????????????????????????????????????????????? | +----------------------------------------------------+ Best States ------------- Heat Dissipation 162 Energy Generation 112 Energy Capacity 1990 Matter Stores 900 Matter Capacity 1000 Sight Range 28 Terrain Scan Range 20 Terrain Scan Density 10 Power Amplification 30 Additional Mass Support 25 Armor Coverage 2300 Resistance: KI 30 Resistance: TH 50 Resistance: EM 39 Point Defense Rating 240 Phase Shifting 15 Evasion (%) 55 Targeting Accuracy 12 Target Analysis 8 Core Analysis 8 Armor Integrity Analysis 50 Recoil Reduction 6 Matter Filtering 50 Particle Charging 50 Offensive Hacking 21 Defensive Hacking 14 Relay Coupler Types 9 Relay Coupler Value 584 Authchip Count 2 Item Schematics ----------------- Autogun | -9/Materials | Extracted Heat Sink | -9/Materials | Extracted Huge Storage Unit | -9/Materials | Extracted Tractor Beam | -9/Materials | Extracted Grenade Launcher | -9/Materials | Extracted Imp. Ion Engine | -9/Materials | Extracted Hvy. EM Pulse Gun | -9/Materials | Extracted Imp. VTOL Module | -8/Materials | Extracted Com. Matter Pod | -8/Materials | Extracted Nuclear Core | -8/Materials | Extracted Med. Storage Unit | -8/Materials | Extracted Hvy. Flak Cannon | -8/Materials | Scanalyzed Transport Network Coupler | -8/Materials | Scanalyzed Med. Reactive Plating | -5/Factory | Scanalyzed Imp. Remote Datajack | -5/Factory | Scanalyzed Thermal Defense Suite | -5/Factory | Scanalyzed Adv. Hacking Suite | -5/Factory | Hacked Imp. Particle Accelerator | -3/Testing | Archive Exp. Energy Well | -3/Testing | Archive Exp. Matter Compressor | -3/Testing | Archive Lgt. Antimatter Cannon | -3/Testing | Archive Com. Mass Driver | -2/Quarantine | Archive Tiamat Missile Launcher | -2/Quarantine | Archive Enh. Multireflex Exoskeleton | -2/Quarantine | Archive Imp. Energy Well | -2/Quarantine | Archive Hds. Centrium Leg | -2/Quarantine | Archive Molecular Scythe | -2/Quarantine | Archive Exp. Biometal Heavy Treads | -2/Section 7 | Archive Prc. Energy Filter | -2/Section 7 | Archive Adv. Kinecellerator | -2/Section 7 | Archive Imp. Q-thruster | -2/Section 7 | Archive Enh. Force Rifle | -2/Section 7 | Archive Adv. KE Penetrator | -2/Section 7 | Archive Cld. Q-thruster | -2/Section 7 | Archive Robot Schematics ------------------ K-01 Serf | -3/Testing | Archive C-55 Analyst | -3/Testing | Archive R-06 Scavenger | -2/Quarantine | Archive T-07 Excavator | -2/Quarantine | Archive G-73 Enforcer | -2/Quarantine | Archive E-15 Imp | -2/Section 7 | Archive Y-72 Warden | -2/Section 7 | Archive G-67 Veteran | -2/Section 7 | Archive Fabricated ------------ Transport Network Coupler | x2 | -4/Factory Repaired ---------- Nothing Studied --------- Hpw. Shotgun | -8/Materials | Hacked Remote Datajack | -7/Factory | Hacked Arm. Huge Wheel | -6/Factory | Hacked Imp. Remote Datajack | -5/Factory | Hacked Centrium Wheel | -5/Factory | Hacked Adv. Remote Datajack | -2/Quarantine | Hacked Alien Tech Used ----------------- Terrabomb Core Cannon Phase Redirector Spacefold Activator Integrated Mediator Core Membrane Integrated Dissipator Integrated Reactor Integrated Thermoelectric Network LRC Storage Core Physics Calibrator Subatomic Replicator Achievements -------------- Analysis Probe Be The Sidekick Chaotic Teddy Bear Deadly Precision Hack The Planet Hackerman I Laugh At Your Crits Insider Info Join The Dark Side Mindtrick My Bad My Business Is Booming Oppo Buddy Powerful Protocols RIFT Wizard Versatile You Will Be Upgraded Zeroed Repercussions Challenges ------------ None Game ------ Seed InsulatedGreatPropulsion Manual? 0 Play Time 13:36:35 Cumulative 488.7 hours Start 2026.07.29 @ 02:15:52 End 2026.08.04 @ 16:57:51 Sessions 15 Manual Loads 0 Difficulty Rogue Special Mode None Game No. 249 Rogue 245 Adventurer 0 Explorer 4 Win Type 4 Total 27 Types 9/1/2/6/2/2/3/1/1/0 Lore% 69 Gallery% 75 Achievement% 62 Wizard Run 0 Options --------- Layout 1 ASCII 0 Keyboard 0 Movement Mouse Keybinds 0 Fullscreen 1 Font 24/Smallcaps Map View 50x35 Zoom Use 0% Tactical HUD 1 Map Filters NONE Filters NONE Steam 1 RUN: d799e86e-ea37-4d5c-a513-19a43882d6da